{"text_format":"1","workbook":"xlsx","n_sheets":4,"sheets":["Titulní list","Seznam řídících funkcí","Návod na vyplnění","Číselníky"],"not_rendered":{"charts":0,"images":0,"macros":1,"external_links":1,"defined_names":5,"comments":0,"pivot_tables":0},"unopened":[],"bounds":{"document_bytes":16777216,"sheet_cells":100000,"rows_first":2000,"rows_last":500,"rows_between":2000,"halvings":0,"cell_chars":16384,"cell_head_chars":4096},"cells_cut":0,"cells_raw":0,"read":"whole","date_system":"1900"}

{"sheet":"Titulní list","index":0,"n_rows":38,"n_cols":82,"rows_kept":38,"cut":false,"hidden":false,"merged":[[37,3,41,70],[5,54,5,70],[32,21,33,38],[32,39,33,44],[32,45,33,70],[19,3,19,19],[19,54,19,62],[20,20,22,53],[20,63,21,70],[23,3,23,19],[23,54,23,62],[23,63,24,70],[31,3,31,20],[31,21,31,38],[36,3,36,70],[13,54,13,62],[29,80,34,81],[34,39,34,44],[27,54,27,62],[27,63,28,70],[29,54,30,62],[29,63,30,70],[31,39,31,44],[31,45,31,70],[24,16,27,53],[25,54,25,62],[25,63,26,70],[32,3,33,20],[14,63,16,70],[16,3,16,19],[16,20,18,53],[9,54,12,70],[10,9,11,18],[10,26,11,35],[10,43,11,52],[13,3,13,19],[13,20,15,53],[5,81,7,81],[1,3,1,70],[1,79,2,82],[4,3,4,19],[4,20,4,36],[4,37,4,53],[4,54,4,70],[5,3,7,19],[5,20,7,36],[5,37,7,53],[5,80,7,80]]}
[]
[null,null,null,"Titulní list",null,null,null,null,null,null,null,null,null,null,null,null,null,null,null,null,null,null,null,null,null,null,null,null,null,null,null,null,null,null,null,null,null,null,null,null,null,null,null,null,null,null,null,null,null,null,null,null,null,null,null,null,null,null,null,null,null,null,null,null,null,null,null,null,null,null,null,null,null,null,null,null,null,null,null,"Při vyplňování položek Titulního listu postupujte podle pokynů uvedených ve \nStandardu ČEZ_ST_0093 (Požadavky na projektovou a související dokumentaci)"]
[]
[]
[null,null,null,"VYPRACOVAL:",null,null,null,null,null,null,null,null,null,null,null,null,null,null,null,null,"KONTROLOVAL:",null,null,null,null,null,null,null,null,null,null,null,null,null,null,null,null,"HIP:",null,null,null,null,null,null,null,null,null,null,null,null,null,null,null,null,"PROJEKTOVÁ FIRMA:"]
[null,null,null,{"$f":"CD9","v":" "},null,null,null,null,null,null,null,null,null,null,null,null,null,null,null,null,{"$f":"CD10","v":" "},null,null,null,null,null,null,null,null,null,null,null,null,null,null,null,null,{"$f":"CD11","v":0},null,null,null,null,null,null,null,null,null,null,null,null,null,null,null,null,"Logo:",null,null,null,null,null,null,null,null,null,null,null,null,null,null,null,null,null,null,null,null,null,null,null,null,null,"Položka Titulního listu","Údaje vyplněné v tomto sloupci jsou automaticky přenášeny na příslušné místo v Titulním Listu\nŘÁDKY VYPLŇUJTE POSTUPNĚ SHORA DOLŮ"]
[]
[]
[null,null,null,null,null,null,null,null,null,null,null,null,null,null,null,null,null,null,null,null,null,null,null,null,null,null,null,null,null,null,null,null,null,null,null,null,null,null,null,null,null,null,null,null,null,null,null,null,null,null,null,null,null,null,null,null,null,null,null,null,null,null,null,null,null,null,null,null,null,null,null,null,null,null,null,null,null,null,null,null,"VYPRACOVAL:"," "]
[null,null,null,"INVESTOR:",null,null,null,null,null,null,null,null,null,null,null,null,null,null,null,null,"LOKALITA:",null,null,null,null,null,null,null,null,null,null,null,null,null,null,null,null,"DATUM:",null,null,null,null,null,null,null,null,null,null,null,null,null,null,null,null,{"$f":"CD12","v":" "},null,null,null,null,null,null,null,null,null,null,null,null,null,null,null,null,null,null,null,null,null,null,null,null,null,"KONTROLOVAL:"," "]
[null,null,null,null,null,null,null,null,null,{"$f":"CD13","v":" "},null,null,null,null,null,null,null,null,null,null,null,null,null,null,null,null,{"$f":"CD14","v":" "},null,null,null,null,null,null,null,null,null,null,null,null,null,null,null,null,{"$f":"CD15","v":" "},null,null,null,null,null,null,null,null,null,null,null,null,null,null,null,null,null,null,null,null,null,null,null,null,null,null,null,null,null,null,null,null,null,null,null,null,"HIP:"]
[null,null,null,null,null,null,null,null,null,null,null,null,null,null,null,null,null,null,null,null,null,null,null,null,null,null,null,null,null,null,null,null,null,null,null,null,null,null,null,null,null,null,null,null,null,null,null,null,null,null,null,null,null,null,null,null,null,null,null,null,null,null,null,null,null,null,null,null,null,null,null,null,null,null,null,null,null,null,null,null,"PROJEKTOVÁ FIRMA:"," "]
[null,null,null,null,null,null,null,null,null,null,null,null,null,null,null,null,null,null,null,null,null,null,null,null,null,null,null,null,null,null,null,null,null,null,null,null,null,null,null,null,null,null,null,null,null,null,null,null,null,null,null,null,null,null,null,null,null,null,null,null,null,null,null,null,null,null,null,null,null,null,null,null,null,null,null,null,null,null,null,null,"INVESTOR:"," "]
[null,null,null,"ČÍSLO A NÁZEV AKCE:",null,null,null,null,null,null,null,null,null,null,null,null,null,null,null,null,{"$f":"CD16","v":" "},null,null,null,null,null,null,null,null,null,null,null,null,null,null,null,null,null,null,null,null,null,null,null,null,null,null,null,null,null,null,null,null,null,"PARE:",null,null,null,null,null,null,null,null,null,null,null,null,null,null,null,null,null,null,null,null,null,null,null,null,null,"LOKALITA:"," "]
[null,null,null,null,null,null,null,null,null,null,null,null,null,null,null,null,null,null,null,null,null,null,null,null,null,null,null,null,null,null,null,null,null,null,null,null,null,null,null,null,null,null,null,null,null,null,null,null,null,null,null,null,null,null,null,null,null,null,null,null,null,null,null,null,null,null,null,null,null,null,null,null,null,null,null,null,null,null,null,null,"DATUM:"," "]
[null,null,null,null,null,null,null,null,null,null,null,null,null,null,null,null,null,null,null,null,null,null,null,null,null,null,null,null,null,null,null,null,null,null,null,null,null,null,null,null,null,null,null,null,null,null,null,null,null,null,null,null,null,null,null,null,null,null,null,null,null,null,null,null,null,null,null,null,null,null,null,null,null,null,null,null,null,null,null,null,"ČÍSLO A NÁZEV AKCE:"," "]
[null,null,null,"ČÍSLO A NÁZEV SO / DPS:",null,null,null,null,null,null,null,null,null,null,null,null,null,null,null,null,{"$f":"CD17","v":" "},null,null,null,null,null,null,null,null,null,null,null,null,null,null,null,null,null,null,null,null,null,null,null,null,null,null,null,null,null,null,null,null,null,null,null,null,null,null,null,null,null,null,null,null,null,null,null,null,null,null,null,null,null,null,null,null,null,null,null,"ČÍSLO A NÁZEV SO / DPS:"," "]
[null,null,null,null,null,null,null,null,null,null,null,null,null,null,null,null,null,null,null,null,null,null,null,null,null,null,null,null,null,null,null,null,null,null,null,null,null,null,null,null,null,null,null,null,null,null,null,null,null,null,null,null,null,null,null,null,null,null,null,null,null,null,null,null,null,null,null,null,null,null,null,null,null,null,null,null,null,null,null,null,"SLOŽKA:"," "]
[null,null,null,null,null,null,null,null,null,null,null,null,null,null,null,null,null,null,null,null,null,null,null,null,null,null,null,null,null,null,null,null,null,null,null,null,null,null,null,null,null,null,null,null,null,null,null,null,null,null,null,null,null,null,null,null,null,null,null,null,null,null,null,null,null,null,null,null,null,null,null,null,null,null,null,null,null,null,null,null,"PARE:","při tisku zůstane prázdné - očíslujte ručně dle počtu výtisků"]
[null,null,null,"SLOŽKA:",null,null,null,null,null,null,null,null,null,null,null,null,null,null,null,null,null,null,null,null,null,null,null,null,null,null,null,null,null,null,null,null,null,null,null,null,null,null,null,null,null,null,null,null,null,null,null,null,null,null,"STUPEŇ:",null,null,null,null,null,null,null,null,null,null,null,null,null,null,null,null,null,null,null,null,null,null,null,null,null,"STUPEŇ:"," "]
[null,null,null,null,null,null,null,null,null,null,null,null,null,null,null,null,null,null,null,null,{"$f":"CD18","v":" "},null,null,null,null,null,null,null,null,null,null,null,null,null,null,null,null,null,null,null,null,null,null,null,null,null,null,null,null,null,null,null,null,null,null,null,null,null,null,null,null,null,null,{"$f":"CD20","v":" "},null,null,null,null,null,null,null,null,null,null,null,null,null,null,null,null,"POČET LISTŮ:"," "]
[null,null,null,null,null,null,null,null,null,null,null,null,null,null,null,null,null,null,null,null,null,null,null,null,null,null,null,null,null,null,null,null,null,null,null,null,null,null,null,null,null,null,null,null,null,null,null,null,null,null,null,null,null,null,null,null,null,null,null,null,null,null,null,null,null,null,null,null,null,null,null,null,null,null,null,null,null,null,null,null,"POŘ. ČÍSLO:"," "]
[null,null,null,null,null,null,null,null,null,null,null,null,null,null,null,null,null,null,null,null,null,null,null,null,null,null,null,null,null,null,null,null,null,null,null,null,null,null,null,null,null,null,null,null,null,null,null,null,null,null,null,null,null,null,null,null,null,null,null,null,null,null,null,null,null,null,null,null,null,null,null,null,null,null,null,null,null,null,null,null,"TYP / PODTYP:"," "]
[null,null,null,"NÁZEV DOKUMENTU:",null,null,null,null,null,null,null,null,null,null,null,null,null,null,null,null,null,null,null,null,null,null,null,null,null,null,null,null,null,null,null,null,null,null,null,null,null,null,null,null,null,null,null,null,null,null,null,null,null,null,"POČET LISTŮ:",null,null,null,null,null,null,null,null,{"$f":"CD21","v":" "},null,null,null,null,null,null,null,null,null,null,null,null,null,null,null,null,"ZAKÁZKA ČÍSLO:"," "]
[null,null,null,null,null,null,null,null,null,null,null,null,null,null,null,null,"SEZNAM ŘÍDÍCÍCH FUNKCÍ",null,null,null,null,null,null,null,null,null,null,null,null,null,null,null,null,null,null,null,null,null,null,null,null,null,null,null,null,null,null,null,null,null,null,null,null,null,null,null,null,null,null,null,null,null,null,null,null,null,null,null,null,null,null,null,null,null,null,null,null,null,null,null,"DODAVATELSKÉ ČÍSLO:"," "]
[null,null,null,null,null,null,null,null,null,null,null,null,null,null,null,null,null,null,null,null,null,null,null,null,null,null,null,null,null,null,null,null,null,null,null,null,null,null,null,null,null,null,null,null,null,null,null,null,null,null,null,null,null,null,"POŘ. ČÍSLO:",null,null,null,null,null,null,null,null,{"$f":"CD22","v":" "},null,null,null,null,null,null,null,null,null,null,null,null,null,null,null,null,"REVIZE:"," "]
[null,null,null,null,null,null,null,null,null,null,null,null,null,null,null,null,null,null,null,null,null,null,null,null,null,null,null,null,null,null,null,null,null,null,null,null,null,null,null,null,null,null,null,null,null,null,null,null,null,null,null,null,null,null,null,null,null,null,null,null,null,null,null,null,null,null,null,null,null,null,null,null,null,null,null,null,null,null,null,null,"EL. SOUBOR:"," "]
[null,null,null,null,null,null,null,null,null,null,null,null,null,null,null,null,null,null,null,null,null,null,null,null,null,null,null,null,null,null,null,null,null,null,null,null,null,null,null,null,null,null,null,null,null,null,null,null,null,null,null,null,null,null,"TYP / PODTYP:"]
[]
[null,null,null,null,null,null,null,null,null,null,null,null,null,null,null,null,null,null,null,null,null,null,null,null,null,null,null,null,null,null,null,null,null,null,null,null,null,null,null,null,null,null,null,null,null,null,null,null,null,null,null,null,null,null,"KÓD TŔÍDY DOKUMENTU:",null,null,null,null,null,null,null,null,"PF03",null,null,null,null,null,null,null,null,null,null,null,null,null,null,null,null,"DOPLNĚNÍ ČÍSELNÍKU:\nList \"Číselníky\" obsahuje číselníky používané v tomto formuláři. \nPokud Vám v některém číselníku použitém na listech v tomto sešitu bude chybět položka pro výběr, je možné jí zadat na listu \"Číselníky\" v příslušném číselníku do zeleně podbarvené buňky. Při vyplňování v tomto sešitu jí pak budete moci použít."]
[]
[null,null,null,"ZAKÁZKA ČÍSLO:",null,null,null,null,null,null,null,null,null,null,null,null,null,null,null,null,null,"DODAVATELSKÉ ČÍSLO:",null,null,null,null,null,null,null,null,null,null,null,null,null,null,null,null,null,"REVIZE:",null,null,null,null,null,"EL. SOUBOR:"]
[null,null,null,{"$f":"CD24","v":" "},null,null,null,null,null,null,null,null,null,null,null,null,null,null,null,null,null,{"$f":"CD25","v":" "},null,null,null,null,null,null,null,null,null,null,null,null,null,null,null,null,null,{"$f":"CD26","v":" "},null,null,null,null,null,{"$f":"CD27","v":" "}]
[]
[]
[]
[]
[null,null,null,"Tabulka \"Titulní list\" je zamčená. Konkrétní údaje (položky titulního listu) se do ní propíšou po jejich vyplnění v okně napravo. Modře podbarvená políčka obsahují výběr z nabídky.\nTisk Titulního listu je nastaven:      A4 na výšku, vycentrování vodorovně a přispůsobení listu na jednu stránku. "]

{"sheet":"Seznam řídících funkcí","index":1,"n_rows":1000,"n_cols":15,"rows_kept":1000,"cut":false,"hidden":false,"merged":[[0,2,0,3]]}
[null,null,"Ukázka vyplnění:"]
[null,"Tento sloupec se netiskne","HMI","10410L501-I1","Ukazování hladiny v technol. Kond. TK1","Monitorování","Ukazování","1BD-OSO-DED","1DVK02","ASRX","C","a)"]
["č. ř.","Kód třídy MATRIO\nvyplní se automaticky","Druh prvku","Označení prvku","Název prvku","Druh funkce","Výstup funkce","Vstupní podmínky","Umístění HMI","Systém\nSKŔ","BK","BK kritérium","BK Kritérium poznámka","Upřesnění podmínek","Poznámka"]
[1,"MOT_Řídící / Kontrolní funkce",null,null,null,"Monitorování","Blokuje vypnutí",null,null,"AM5","C","a)"]
[2,"MOT_Řídící / Kontrolní funkce"]
[3,"MOT_Řídící / Kontrolní funkce"]
[4,"MOT_Řídící / Kontrolní funkce"]
[5,"MOT_Řídící / Kontrolní funkce"]
[6,"MOT_Řídící / Kontrolní funkce"]
[7,"MOT_Řídící / Kontrolní funkce"]
[8,"MOT_Řídící / Kontrolní funkce"]
[9,"MOT_Řídící / Kontrolní funkce"]
[10,"MOT_Řídící / Kontrolní funkce"]
[11,"MOT_Řídící / Kontrolní funkce"]
[12,"MOT_Řídící / Kontrolní funkce"]
[13,"MOT_Řídící / Kontrolní funkce"]
[14,"MOT_Řídící / Kontrolní funkce"]
[15,"MOT_Řídící / Kontrolní funkce"]
[16,"MOT_Řídící / Kontrolní funkce"]
[17,"MOT_Řídící / Kontrolní funkce"]
[18,"MOT_Řídící / Kontrolní funkce"]
[19,"MOT_Řídící / Kontrolní funkce"]
[20,"MOT_Řídící / Kontrolní funkce"]
[21,"MOT_Řídící / Kontrolní funkce"]
[22,"MOT_Řídící / Kontrolní funkce"]
[23,"MOT_Řídící / Kontrolní funkce"]
[24,"MOT_Řídící / Kontrolní funkce"]
[25,"MOT_Řídící / Kontrolní funkce"]
[26,"MOT_Řídící / Kontrolní funkce"]
[27,"MOT_Řídící / Kontrolní funkce"]
[28,"MOT_Řídící / Kontrolní funkce"]
[29,"MOT_Řídící / Kontrolní funkce"]
[30,"MOT_Řídící / Kontrolní funkce"]
[31,"MOT_Řídící / Kontrolní funkce"]
[32,"MOT_Řídící / Kontrolní funkce"]
[33,"MOT_Řídící / Kontrolní funkce"]
[34,"MOT_Řídící / Kontrolní funkce"]
[35,"MOT_Řídící / Kontrolní funkce"]
[36,"MOT_Řídící / Kontrolní funkce"]
[37,"MOT_Řídící / Kontrolní funkce"]
[38,"MOT_Řídící / Kontrolní funkce"]
[39,"MOT_Řídící / Kontrolní funkce"]
[40,"MOT_Řídící / Kontrolní funkce"]
[41,"MOT_Řídící / Kontrolní funkce"]
[42,"MOT_Řídící / Kontrolní funkce"]
[43,"MOT_Řídící / Kontrolní funkce"]
[44,"MOT_Řídící / Kontrolní funkce"]
[45,"MOT_Řídící / Kontrolní funkce"]
[46,"MOT_Řídící / Kontrolní funkce"]
[47,"MOT_Řídící / Kontrolní funkce"]
[48,"MOT_Řídící / Kontrolní funkce"]
[49,"MOT_Řídící / Kontrolní funkce"]
[50,"MOT_Řídící / Kontrolní funkce"]
[51,"MOT_Řídící / Kontrolní funkce"]
[52,"MOT_Řídící / Kontrolní funkce"]
[53,"MOT_Řídící / Kontrolní funkce"]
[54,"MOT_Řídící / Kontrolní funkce"]
[55,"MOT_Řídící / Kontrolní funkce"]
[56,"MOT_Řídící / Kontrolní funkce"]
[57,"MOT_Řídící / Kontrolní funkce"]
[58,"MOT_Řídící / Kontrolní funkce"]
[59,"MOT_Řídící / Kontrolní funkce"]
[60,"MOT_Řídící / Kontrolní funkce"]
[61,"MOT_Řídící / Kontrolní funkce"]
[62,"MOT_Řídící / Kontrolní funkce"]
[63,"MOT_Řídící / Kontrolní funkce"]
[64,"MOT_Řídící / Kontrolní funkce"]
[65,"MOT_Řídící / Kontrolní funkce"]
[66,"MOT_Řídící / Kontrolní funkce"]
[67,"MOT_Řídící / Kontrolní funkce"]
[68,"MOT_Řídící / Kontrolní funkce"]
[69,"MOT_Řídící / Kontrolní funkce"]
[70,"MOT_Řídící / Kontrolní funkce"]
[71,"MOT_Řídící / Kontrolní funkce"]
[72,"MOT_Řídící / Kontrolní funkce"]
[73,"MOT_Řídící / Kontrolní funkce"]
[74,"MOT_Řídící / Kontrolní funkce"]
[75,"MOT_Řídící / Kontrolní funkce"]
[76,"MOT_Řídící / Kontrolní funkce"]
[77,"MOT_Řídící / Kontrolní funkce"]
[78,"MOT_Řídící / Kontrolní funkce"]
[79,"MOT_Řídící / Kontrolní funkce"]
[80,"MOT_Řídící / Kontrolní funkce"]
[81,"MOT_Řídící / Kontrolní funkce"]
[82,"MOT_Řídící / Kontrolní funkce"]
[83,"MOT_Řídící / Kontrolní funkce"]
[84,"MOT_Řídící / Kontrolní funkce"]
[85,"MOT_Řídící / Kontrolní funkce"]
[86,"MOT_Řídící / Kontrolní funkce"]
[87,"MOT_Řídící / Kontrolní funkce"]
[88,"MOT_Řídící / Kontrolní funkce"]
[89,"MOT_Řídící / Kontrolní funkce"]
[90,"MOT_Řídící / Kontrolní funkce"]
[91,"MOT_Řídící / Kontrolní funkce"]
[92,"MOT_Řídící / Kontrolní funkce"]
[93,"MOT_Řídící / Kontrolní funkce"]
[94,"MOT_Řídící / Kontrolní funkce"]
[95,"MOT_Řídící / Kontrolní funkce"]
[96,"MOT_Řídící / Kontrolní funkce"]
[97,"MOT_Řídící / Kontrolní funkce"]
[98,"MOT_Řídící / Kontrolní funkce"]
[99,"MOT_Řídící / Kontrolní funkce"]
[100,"MOT_Řídící / Kontrolní funkce"]
[101,"MOT_Řídící / Kontrolní funkce"]
[102,"MOT_Řídící / Kontrolní funkce"]
[103,"MOT_Řídící / Kontrolní funkce"]
[104,"MOT_Řídící / Kontrolní funkce"]
[105,"MOT_Řídící / Kontrolní funkce"]
[106,"MOT_Řídící / Kontrolní funkce"]
[107,"MOT_Řídící / Kontrolní funkce"]
[108,"MOT_Řídící / Kontrolní funkce"]
[109,"MOT_Řídící / Kontrolní funkce"]
[110,"MOT_Řídící / Kontrolní funkce"]
[111,"MOT_Řídící / Kontrolní funkce"]
[112,"MOT_Řídící / Kontrolní funkce"]
[113,"MOT_Řídící / Kontrolní funkce"]
[114,"MOT_Řídící / Kontrolní funkce"]
[115,"MOT_Řídící / Kontrolní funkce"]
[116,"MOT_Řídící / Kontrolní funkce"]
[117,"MOT_Řídící / Kontrolní funkce"]
[118,"MOT_Řídící / Kontrolní funkce"]
[119,"MOT_Řídící / Kontrolní funkce"]
[120,"MOT_Řídící / Kontrolní funkce"]
[121,"MOT_Řídící / Kontrolní funkce"]
[122,"MOT_Řídící / Kontrolní funkce"]
[123,"MOT_Řídící / Kontrolní funkce"]
[124,"MOT_Řídící / Kontrolní funkce"]
[125,"MOT_Řídící / Kontrolní funkce"]
[126,"MOT_Řídící / Kontrolní funkce"]
[127,"MOT_Řídící / Kontrolní funkce"]
[128,"MOT_Řídící / Kontrolní funkce"]
[129,"MOT_Řídící / Kontrolní funkce"]
[130,"MOT_Řídící / Kontrolní funkce"]
[131,"MOT_Řídící / Kontrolní funkce"]
[132,"MOT_Řídící / Kontrolní funkce"]
[133,"MOT_Řídící / Kontrolní funkce"]
[134,"MOT_Řídící / Kontrolní funkce"]
[135,"MOT_Řídící / Kontrolní funkce"]
[136,"MOT_Řídící / Kontrolní funkce"]
[137,"MOT_Řídící / Kontrolní funkce"]
[138,"MOT_Řídící / Kontrolní funkce"]
[139,"MOT_Řídící / Kontrolní funkce"]
[140,"MOT_Řídící / Kontrolní funkce"]
[141,"MOT_Řídící / Kontrolní funkce"]
[142,"MOT_Řídící / Kontrolní funkce"]
[143,"MOT_Řídící / Kontrolní funkce"]
[144,"MOT_Řídící / Kontrolní funkce"]
[145,"MOT_Řídící / Kontrolní funkce"]
[146,"MOT_Řídící / Kontrolní funkce"]
[147,"MOT_Řídící / Kontrolní funkce"]
[148,"MOT_Řídící / Kontrolní funkce"]
[149,"MOT_Řídící / Kontrolní funkce"]
[150,"MOT_Řídící / Kontrolní funkce"]
[151,"MOT_Řídící / Kontrolní funkce"]
[152,"MOT_Řídící / Kontrolní funkce"]
[153,"MOT_Řídící / Kontrolní funkce"]
[154,"MOT_Řídící / Kontrolní funkce"]
[155,"MOT_Řídící / Kontrolní funkce"]
[156,"MOT_Řídící / Kontrolní funkce"]
[157,"MOT_Řídící / Kontrolní funkce"]
[158,"MOT_Řídící / Kontrolní funkce"]
[159,"MOT_Řídící / Kontrolní funkce"]
[160,"MOT_Řídící / Kontrolní funkce"]
[161,"MOT_Řídící / Kontrolní funkce"]
[162,"MOT_Řídící / Kontrolní funkce"]
[163,"MOT_Řídící / Kontrolní funkce"]
[164,"MOT_Řídící / Kontrolní funkce"]
[165,"MOT_Řídící / Kontrolní funkce"]
[166,"MOT_Řídící / Kontrolní funkce"]
[167,"MOT_Řídící / Kontrolní funkce"]
[168,"MOT_Řídící / Kontrolní funkce"]
[169,"MOT_Řídící / Kontrolní funkce"]
[170,"MOT_Řídící / Kontrolní funkce"]
[171,"MOT_Řídící / Kontrolní funkce"]
[172,"MOT_Řídící / Kontrolní funkce"]
[173,"MOT_Řídící / Kontrolní funkce"]
[174,"MOT_Řídící / Kontrolní funkce"]
[175,"MOT_Řídící / Kontrolní funkce"]
[176,"MOT_Řídící / Kontrolní funkce"]
[177,"MOT_Řídící / Kontrolní funkce"]
[178,"MOT_Řídící / Kontrolní funkce"]
[179,"MOT_Řídící / Kontrolní funkce"]
[180,"MOT_Řídící / Kontrolní funkce"]
[181,"MOT_Řídící / Kontrolní funkce"]
[182,"MOT_Řídící / Kontrolní funkce"]
[183,"MOT_Řídící / Kontrolní funkce"]
[184,"MOT_Řídící / Kontrolní funkce"]
[185,"MOT_Řídící / Kontrolní funkce"]
[186,"MOT_Řídící / Kontrolní funkce"]
[187,"MOT_Řídící / Kontrolní funkce"]
[188,"MOT_Řídící / Kontrolní funkce"]
[189,"MOT_Řídící / Kontrolní funkce"]
[190,"MOT_Řídící / Kontrolní funkce"]
[191,"MOT_Řídící / Kontrolní funkce"]
[192,"MOT_Řídící / Kontrolní funkce"]
[193,"MOT_Řídící / Kontrolní funkce"]
[194,"MOT_Řídící / Kontrolní funkce"]
[195,"MOT_Řídící / Kontrolní funkce"]
[196,"MOT_Řídící / Kontrolní funkce"]
[197,"MOT_Řídící / Kontrolní funkce"]
[198,"MOT_Řídící / Kontrolní funkce"]
[199,"MOT_Řídící / Kontrolní funkce"]
[200,"MOT_Řídící / Kontrolní funkce"]
[201,"MOT_Řídící / Kontrolní funkce"]
[202,"MOT_Řídící / Kontrolní funkce"]
[203,"MOT_Řídící / Kontrolní funkce"]
[204,"MOT_Řídící / Kontrolní funkce"]
[205,"MOT_Řídící / Kontrolní funkce"]
[206,"MOT_Řídící / Kontrolní funkce"]
[207,"MOT_Řídící / Kontrolní funkce"]
[208,"MOT_Řídící / Kontrolní funkce"]
[209,"MOT_Řídící / Kontrolní funkce"]
[210,"MOT_Řídící / Kontrolní funkce"]
[211,"MOT_Řídící / Kontrolní funkce"]
[212,"MOT_Řídící / Kontrolní funkce"]
[213,"MOT_Řídící / Kontrolní funkce"]
[214,"MOT_Řídící / Kontrolní funkce"]
[215,"MOT_Řídící / Kontrolní funkce"]
[216,"MOT_Řídící / Kontrolní funkce"]
[217,"MOT_Řídící / Kontrolní funkce"]
[218,"MOT_Řídící / Kontrolní funkce"]
[219,"MOT_Řídící / Kontrolní funkce"]
[220,"MOT_Řídící / Kontrolní funkce"]
[221,"MOT_Řídící / Kontrolní funkce"]
[222,"MOT_Řídící / Kontrolní funkce"]
[223,"MOT_Řídící / Kontrolní funkce"]
[224,"MOT_Řídící / Kontrolní funkce"]
[225,"MOT_Řídící / Kontrolní funkce"]
[226,"MOT_Řídící / Kontrolní funkce"]
[227,"MOT_Řídící / Kontrolní funkce"]
[228,"MOT_Řídící / Kontrolní funkce"]
[229,"MOT_Řídící / Kontrolní funkce"]
[230,"MOT_Řídící / Kontrolní funkce"]
[231,"MOT_Řídící / Kontrolní funkce"]
[232,"MOT_Řídící / Kontrolní funkce"]
[233,"MOT_Řídící / Kontrolní funkce"]
[234,"MOT_Řídící / Kontrolní funkce"]
[235,"MOT_Řídící / Kontrolní funkce"]
[236,"MOT_Řídící / Kontrolní funkce"]
[237,"MOT_Řídící / Kontrolní funkce"]
[238,"MOT_Řídící / Kontrolní funkce"]
[239,"MOT_Řídící / Kontrolní funkce"]
[240,"MOT_Řídící / Kontrolní funkce"]
[241,"MOT_Řídící / Kontrolní funkce"]
[242,"MOT_Řídící / Kontrolní funkce"]
[243,"MOT_Řídící / Kontrolní funkce"]
[244,"MOT_Řídící / Kontrolní funkce"]
[245,"MOT_Řídící / Kontrolní funkce"]
[246,"MOT_Řídící / Kontrolní funkce"]
[247,"MOT_Řídící / Kontrolní funkce"]
[248,"MOT_Řídící / Kontrolní funkce"]
[249,"MOT_Řídící / Kontrolní funkce"]
[250,"MOT_Řídící / Kontrolní funkce"]
[251,"MOT_Řídící / Kontrolní funkce"]
[252,"MOT_Řídící / Kontrolní funkce"]
[253,"MOT_Řídící / Kontrolní funkce"]
[254,"MOT_Řídící / Kontrolní funkce"]
[255,"MOT_Řídící / Kontrolní funkce"]
[256,"MOT_Řídící / Kontrolní funkce"]
[257,"MOT_Řídící / Kontrolní funkce"]
[258,"MOT_Řídící / Kontrolní funkce"]
[259,"MOT_Řídící / Kontrolní funkce"]
[260,"MOT_Řídící / Kontrolní funkce"]
[261,"MOT_Řídící / Kontrolní funkce"]
[262,"MOT_Řídící / Kontrolní funkce"]
[263,"MOT_Řídící / Kontrolní funkce"]
[264,"MOT_Řídící / Kontrolní funkce"]
[265,"MOT_Řídící / Kontrolní funkce"]
[266,"MOT_Řídící / Kontrolní funkce"]
[267,"MOT_Řídící / Kontrolní funkce"]
[268,"MOT_Řídící / Kontrolní funkce"]
[269,"MOT_Řídící / Kontrolní funkce"]
[270,"MOT_Řídící / Kontrolní funkce"]
[271,"MOT_Řídící / Kontrolní funkce"]
[272,"MOT_Řídící / Kontrolní funkce"]
[273,"MOT_Řídící / Kontrolní funkce"]
[274,"MOT_Řídící / Kontrolní funkce"]
[275,"MOT_Řídící / Kontrolní funkce"]
[276,"MOT_Řídící / Kontrolní funkce"]
[277,"MOT_Řídící / Kontrolní funkce"]
[278,"MOT_Řídící / Kontrolní funkce"]
[279,"MOT_Řídící / Kontrolní funkce"]
[280,"MOT_Řídící / Kontrolní funkce"]
[281,"MOT_Řídící / Kontrolní funkce"]
[282,"MOT_Řídící / Kontrolní funkce"]
[283,"MOT_Řídící / Kontrolní funkce"]
[284,"MOT_Řídící / Kontrolní funkce"]
[285,"MOT_Řídící / Kontrolní funkce"]
[286,"MOT_Řídící / Kontrolní funkce"]
[287,"MOT_Řídící / Kontrolní funkce"]
[288,"MOT_Řídící / Kontrolní funkce"]
[289,"MOT_Řídící / Kontrolní funkce"]
[290,"MOT_Řídící / Kontrolní funkce"]
[291,"MOT_Řídící / Kontrolní funkce"]
[292,"MOT_Řídící / Kontrolní funkce"]
[293,"MOT_Řídící / Kontrolní funkce"]
[294,"MOT_Řídící / Kontrolní funkce"]
[295,"MOT_Řídící / Kontrolní funkce"]
[296,"MOT_Řídící / Kontrolní funkce"]
[297,"MOT_Řídící / Kontrolní funkce"]
[298,"MOT_Řídící / Kontrolní funkce"]
[299,"MOT_Řídící / Kontrolní funkce"]
[300,"MOT_Řídící / Kontrolní funkce"]
[301,"MOT_Řídící / Kontrolní funkce"]
[302,"MOT_Řídící / Kontrolní funkce"]
[303,"MOT_Řídící / Kontrolní funkce"]
[304,"MOT_Řídící / Kontrolní funkce"]
[305,"MOT_Řídící / Kontrolní funkce"]
[306,"MOT_Řídící / Kontrolní funkce"]
[307,"MOT_Řídící / Kontrolní funkce"]
[308,"MOT_Řídící / Kontrolní funkce"]
[309,"MOT_Řídící / Kontrolní funkce"]
[310,"MOT_Řídící / Kontrolní funkce"]
[311,"MOT_Řídící / Kontrolní funkce"]
[312,"MOT_Řídící / Kontrolní funkce"]
[313,"MOT_Řídící / Kontrolní funkce"]
[314,"MOT_Řídící / Kontrolní funkce"]
[315,"MOT_Řídící / Kontrolní funkce"]
[316,"MOT_Řídící / Kontrolní funkce"]
[317,"MOT_Řídící / Kontrolní funkce"]
[318,"MOT_Řídící / Kontrolní funkce"]
[319,"MOT_Řídící / Kontrolní funkce"]
[320,"MOT_Řídící / Kontrolní funkce"]
[321,"MOT_Řídící / Kontrolní funkce"]
[322,"MOT_Řídící / Kontrolní funkce"]
[323,"MOT_Řídící / Kontrolní funkce"]
[324,"MOT_Řídící / Kontrolní funkce"]
[325,"MOT_Řídící / Kontrolní funkce"]
[326,"MOT_Řídící / Kontrolní funkce"]
[327,"MOT_Řídící / Kontrolní funkce"]
[328,"MOT_Řídící / Kontrolní funkce"]
[329,"MOT_Řídící / Kontrolní funkce"]
[330,"MOT_Řídící / Kontrolní funkce"]
[331,"MOT_Řídící / Kontrolní funkce"]
[332,"MOT_Řídící / Kontrolní funkce"]
[333,"MOT_Řídící / Kontrolní funkce"]
[334,"MOT_Řídící / Kontrolní funkce"]
[335,"MOT_Řídící / Kontrolní funkce"]
[336,"MOT_Řídící / Kontrolní funkce"]
[337,"MOT_Řídící / Kontrolní funkce"]
[338,"MOT_Řídící / Kontrolní funkce"]
[339,"MOT_Řídící / Kontrolní funkce"]
[340,"MOT_Řídící / Kontrolní funkce"]
[341,"MOT_Řídící / Kontrolní funkce"]
[342,"MOT_Řídící / Kontrolní funkce"]
[343,"MOT_Řídící / Kontrolní funkce"]
[344,"MOT_Řídící / Kontrolní funkce"]
[345,"MOT_Řídící / Kontrolní funkce"]
[346,"MOT_Řídící / Kontrolní funkce"]
[347,"MOT_Řídící / Kontrolní funkce"]
[348,"MOT_Řídící / Kontrolní funkce"]
[349,"MOT_Řídící / Kontrolní funkce"]
[350,"MOT_Řídící / Kontrolní funkce"]
[351,"MOT_Řídící / Kontrolní funkce"]
[352,"MOT_Řídící / Kontrolní funkce"]
[353,"MOT_Řídící / Kontrolní funkce"]
[354,"MOT_Řídící / Kontrolní funkce"]
[355,"MOT_Řídící / Kontrolní funkce"]
[356,"MOT_Řídící / Kontrolní funkce"]
[357,"MOT_Řídící / Kontrolní funkce"]
[358,"MOT_Řídící / Kontrolní funkce"]
[359,"MOT_Řídící / Kontrolní funkce"]
[360,"MOT_Řídící / Kontrolní funkce"]
[361,"MOT_Řídící / Kontrolní funkce"]
[362,"MOT_Řídící / Kontrolní funkce"]
[363,"MOT_Řídící / Kontrolní funkce"]
[364,"MOT_Řídící / Kontrolní funkce"]
[365,"MOT_Řídící / Kontrolní funkce"]
[366,"MOT_Řídící / Kontrolní funkce"]
[367,"MOT_Řídící / Kontrolní funkce"]
[368,"MOT_Řídící / Kontrolní funkce"]
[369,"MOT_Řídící / Kontrolní funkce"]
[370,"MOT_Řídící / Kontrolní funkce"]
[371,"MOT_Řídící / Kontrolní funkce"]
[372,"MOT_Řídící / Kontrolní funkce"]
[373,"MOT_Řídící / Kontrolní funkce"]
[374,"MOT_Řídící / Kontrolní funkce"]
[375,"MOT_Řídící / Kontrolní funkce"]
[376,"MOT_Řídící / Kontrolní funkce"]
[377,"MOT_Řídící / Kontrolní funkce"]
[378,"MOT_Řídící / Kontrolní funkce"]
[379,"MOT_Řídící / Kontrolní funkce"]
[380,"MOT_Řídící / Kontrolní funkce"]
[381,"MOT_Řídící / Kontrolní funkce"]
[382,"MOT_Řídící / Kontrolní funkce"]
[383,"MOT_Řídící / Kontrolní funkce"]
[384,"MOT_Řídící / Kontrolní funkce"]
[385,"MOT_Řídící / Kontrolní funkce"]
[386,"MOT_Řídící / Kontrolní funkce"]
[387,"MOT_Řídící / Kontrolní funkce"]
[388,"MOT_Řídící / Kontrolní funkce"]
[389,"MOT_Řídící / Kontrolní funkce"]
[390,"MOT_Řídící / Kontrolní funkce"]
[391,"MOT_Řídící / Kontrolní funkce"]
[392,"MOT_Řídící / Kontrolní funkce"]
[393,"MOT_Řídící / Kontrolní funkce"]
[394,"MOT_Řídící / Kontrolní funkce"]
[395,"MOT_Řídící / Kontrolní funkce"]
[396,"MOT_Řídící / Kontrolní funkce"]
[397,"MOT_Řídící / Kontrolní funkce"]
[398,"MOT_Řídící / Kontrolní funkce"]
[399,"MOT_Řídící / Kontrolní funkce"]
[400,"MOT_Řídící / Kontrolní funkce"]
[401,"MOT_Řídící / Kontrolní funkce"]
[402,"MOT_Řídící / Kontrolní funkce"]
[403,"MOT_Řídící / Kontrolní funkce"]
[404,"MOT_Řídící / Kontrolní funkce"]
[405,"MOT_Řídící / Kontrolní funkce"]
[406,"MOT_Řídící / Kontrolní funkce"]
[407,"MOT_Řídící / Kontrolní funkce"]
[408,"MOT_Řídící / Kontrolní funkce"]
[409,"MOT_Řídící / Kontrolní funkce"]
[410,"MOT_Řídící / Kontrolní funkce"]
[411,"MOT_Řídící / Kontrolní funkce"]
[412,"MOT_Řídící / Kontrolní funkce"]
[413,"MOT_Řídící / Kontrolní funkce"]
[414,"MOT_Řídící / Kontrolní funkce"]
[415,"MOT_Řídící / Kontrolní funkce"]
[416,"MOT_Řídící / Kontrolní funkce"]
[417,"MOT_Řídící / Kontrolní funkce"]
[418,"MOT_Řídící / Kontrolní funkce"]
[419,"MOT_Řídící / Kontrolní funkce"]
[420,"MOT_Řídící / Kontrolní funkce"]
[421,"MOT_Řídící / Kontrolní funkce"]
[422,"MOT_Řídící / Kontrolní funkce"]
[423,"MOT_Řídící / Kontrolní funkce"]
[424,"MOT_Řídící / Kontrolní funkce"]
[425,"MOT_Řídící / Kontrolní funkce"]
[426,"MOT_Řídící / Kontrolní funkce"]
[427,"MOT_Řídící / Kontrolní funkce"]
[428,"MOT_Řídící / Kontrolní funkce"]
[429,"MOT_Řídící / Kontrolní funkce"]
[430,"MOT_Řídící / Kontrolní funkce"]
[431,"MOT_Řídící / Kontrolní funkce"]
[432,"MOT_Řídící / Kontrolní funkce"]
[433,"MOT_Řídící / Kontrolní funkce"]
[434,"MOT_Řídící / Kontrolní funkce"]
[435,"MOT_Řídící / Kontrolní funkce"]
[436,"MOT_Řídící / Kontrolní funkce"]
[437,"MOT_Řídící / Kontrolní funkce"]
[438,"MOT_Řídící / Kontrolní funkce"]
[439,"MOT_Řídící / Kontrolní funkce"]
[440,"MOT_Řídící / Kontrolní funkce"]
[441,"MOT_Řídící / Kontrolní funkce"]
[442,"MOT_Řídící / Kontrolní funkce"]
[443,"MOT_Řídící / Kontrolní funkce"]
[444,"MOT_Řídící / Kontrolní funkce"]
[445,"MOT_Řídící / Kontrolní funkce"]
[446,"MOT_Řídící / Kontrolní funkce"]
[447,"MOT_Řídící / Kontrolní funkce"]
[448,"MOT_Řídící / Kontrolní funkce"]
[449,"MOT_Řídící / Kontrolní funkce"]
[450,"MOT_Řídící / Kontrolní funkce"]
[451,"MOT_Řídící / Kontrolní funkce"]
[452,"MOT_Řídící / Kontrolní funkce"]
[453,"MOT_Řídící / Kontrolní funkce"]
[454,"MOT_Řídící / Kontrolní funkce"]
[455,"MOT_Řídící / Kontrolní funkce"]
[456,"MOT_Řídící / Kontrolní funkce"]
[457,"MOT_Řídící / Kontrolní funkce"]
[458,"MOT_Řídící / Kontrolní funkce"]
[459,"MOT_Řídící / Kontrolní funkce"]
[460,"MOT_Řídící / Kontrolní funkce"]
[461,"MOT_Řídící / Kontrolní funkce"]
[462,"MOT_Řídící / Kontrolní funkce"]
[463,"MOT_Řídící / Kontrolní funkce"]
[464,"MOT_Řídící / Kontrolní funkce"]
[465,"MOT_Řídící / Kontrolní funkce"]
[466,"MOT_Řídící / Kontrolní funkce"]
[467,"MOT_Řídící / Kontrolní funkce"]
[468,"MOT_Řídící / Kontrolní funkce"]
[469,"MOT_Řídící / Kontrolní funkce"]
[470,"MOT_Řídící / Kontrolní funkce"]
[471,"MOT_Řídící / Kontrolní funkce"]
[472,"MOT_Řídící / Kontrolní funkce"]
[473,"MOT_Řídící / Kontrolní funkce"]
[474,"MOT_Řídící / Kontrolní funkce"]
[475,"MOT_Řídící / Kontrolní funkce"]
[476,"MOT_Řídící / Kontrolní funkce"]
[477,"MOT_Řídící / Kontrolní funkce"]
[478,"MOT_Řídící / Kontrolní funkce"]
[479,"MOT_Řídící / Kontrolní funkce"]
[480,"MOT_Řídící / Kontrolní funkce"]
[481,"MOT_Řídící / Kontrolní funkce"]
[482,"MOT_Řídící / Kontrolní funkce"]
[483,"MOT_Řídící / Kontrolní funkce"]
[484,"MOT_Řídící / Kontrolní funkce"]
[485,"MOT_Řídící / Kontrolní funkce"]
[486,"MOT_Řídící / Kontrolní funkce"]
[487,"MOT_Řídící / Kontrolní funkce"]
[488,"MOT_Řídící / Kontrolní funkce"]
[489,"MOT_Řídící / Kontrolní funkce"]
[490,"MOT_Řídící / Kontrolní funkce"]
[491,"MOT_Řídící / Kontrolní funkce"]
[492,"MOT_Řídící / Kontrolní funkce"]
[493,"MOT_Řídící / Kontrolní funkce"]
[494,"MOT_Řídící / Kontrolní funkce"]
[495,"MOT_Řídící / Kontrolní funkce"]
[496,"MOT_Řídící / Kontrolní funkce"]
[497,"MOT_Řídící / Kontrolní funkce"]
[498,"MOT_Řídící / Kontrolní funkce"]
[499,"MOT_Řídící / Kontrolní funkce"]
[500,"MOT_Řídící / Kontrolní funkce"]
[501,"MOT_Řídící / Kontrolní funkce"]
[502,"MOT_Řídící / Kontrolní funkce"]
[503,"MOT_Řídící / Kontrolní funkce"]
[504,"MOT_Řídící / Kontrolní funkce"]
[505,"MOT_Řídící / Kontrolní funkce"]
[506,"MOT_Řídící / Kontrolní funkce"]
[507,"MOT_Řídící / Kontrolní funkce"]
[508,"MOT_Řídící / Kontrolní funkce"]
[509,"MOT_Řídící / Kontrolní funkce"]
[510,"MOT_Řídící / Kontrolní funkce"]
[511,"MOT_Řídící / Kontrolní funkce"]
[512,"MOT_Řídící / Kontrolní funkce"]
[513,"MOT_Řídící / Kontrolní funkce"]
[514,"MOT_Řídící / Kontrolní funkce"]
[515,"MOT_Řídící / Kontrolní funkce"]
[516,"MOT_Řídící / Kontrolní funkce"]
[517,"MOT_Řídící / Kontrolní funkce"]
[518,"MOT_Řídící / Kontrolní funkce"]
[519,"MOT_Řídící / Kontrolní funkce"]
[520,"MOT_Řídící / Kontrolní funkce"]
[521,"MOT_Řídící / Kontrolní funkce"]
[522,"MOT_Řídící / Kontrolní funkce"]
[523,"MOT_Řídící / Kontrolní funkce"]
[524,"MOT_Řídící / Kontrolní funkce"]
[525,"MOT_Řídící / Kontrolní funkce"]
[526,"MOT_Řídící / Kontrolní funkce"]
[527,"MOT_Řídící / Kontrolní funkce"]
[528,"MOT_Řídící / Kontrolní funkce"]
[529,"MOT_Řídící / Kontrolní funkce"]
[530,"MOT_Řídící / Kontrolní funkce"]
[531,"MOT_Řídící / Kontrolní funkce"]
[532,"MOT_Řídící / Kontrolní funkce"]
[533,"MOT_Řídící / Kontrolní funkce"]
[534,"MOT_Řídící / Kontrolní funkce"]
[535,"MOT_Řídící / Kontrolní funkce"]
[536,"MOT_Řídící / Kontrolní funkce"]
[537,"MOT_Řídící / Kontrolní funkce"]
[538,"MOT_Řídící / Kontrolní funkce"]
[539,"MOT_Řídící / Kontrolní funkce"]
[540,"MOT_Řídící / Kontrolní funkce"]
[541,"MOT_Řídící / Kontrolní funkce"]
[542,"MOT_Řídící / Kontrolní funkce"]
[543,"MOT_Řídící / Kontrolní funkce"]
[544,"MOT_Řídící / Kontrolní funkce"]
[545,"MOT_Řídící / Kontrolní funkce"]
[546,"MOT_Řídící / Kontrolní funkce"]
[547,"MOT_Řídící / Kontrolní funkce"]
[548,"MOT_Řídící / Kontrolní funkce"]
[549,"MOT_Řídící / Kontrolní funkce"]
[550,"MOT_Řídící / Kontrolní funkce"]
[551,"MOT_Řídící / Kontrolní funkce"]
[552,"MOT_Řídící / Kontrolní funkce"]
[553,"MOT_Řídící / Kontrolní funkce"]
[554,"MOT_Řídící / Kontrolní funkce"]
[555,"MOT_Řídící / Kontrolní funkce"]
[556,"MOT_Řídící / Kontrolní funkce"]
[557,"MOT_Řídící / Kontrolní funkce"]
[558,"MOT_Řídící / Kontrolní funkce"]
[559,"MOT_Řídící / Kontrolní funkce"]
[560,"MOT_Řídící / Kontrolní funkce"]
[561,"MOT_Řídící / Kontrolní funkce"]
[562,"MOT_Řídící / Kontrolní funkce"]
[563,"MOT_Řídící / Kontrolní funkce"]
[564,"MOT_Řídící / Kontrolní funkce"]
[565,"MOT_Řídící / Kontrolní funkce"]
[566,"MOT_Řídící / Kontrolní funkce"]
[567,"MOT_Řídící / Kontrolní funkce"]
[568,"MOT_Řídící / Kontrolní funkce"]
[569,"MOT_Řídící / Kontrolní funkce"]
[570,"MOT_Řídící / Kontrolní funkce"]
[571,"MOT_Řídící / Kontrolní funkce"]
[572,"MOT_Řídící / Kontrolní funkce"]
[573,"MOT_Řídící / Kontrolní funkce"]
[574,"MOT_Řídící / Kontrolní funkce"]
[575,"MOT_Řídící / Kontrolní funkce"]
[576,"MOT_Řídící / Kontrolní funkce"]
[577,"MOT_Řídící / Kontrolní funkce"]
[578,"MOT_Řídící / Kontrolní funkce"]
[579,"MOT_Řídící / Kontrolní funkce"]
[580,"MOT_Řídící / Kontrolní funkce"]
[581,"MOT_Řídící / Kontrolní funkce"]
[582,"MOT_Řídící / Kontrolní funkce"]
[583,"MOT_Řídící / Kontrolní funkce"]
[584,"MOT_Řídící / Kontrolní funkce"]
[585,"MOT_Řídící / Kontrolní funkce"]
[586,"MOT_Řídící / Kontrolní funkce"]
[587,"MOT_Řídící / Kontrolní funkce"]
[588,"MOT_Řídící / Kontrolní funkce"]
[589,"MOT_Řídící / Kontrolní funkce"]
[590,"MOT_Řídící / Kontrolní funkce"]
[591,"MOT_Řídící / Kontrolní funkce"]
[592,"MOT_Řídící / Kontrolní funkce"]
[593,"MOT_Řídící / Kontrolní funkce"]
[594,"MOT_Řídící / Kontrolní funkce"]
[595,"MOT_Řídící / Kontrolní funkce"]
[596,"MOT_Řídící / Kontrolní funkce"]
[597,"MOT_Řídící / Kontrolní funkce"]
[598,"MOT_Řídící / Kontrolní funkce"]
[599,"MOT_Řídící / Kontrolní funkce"]
[600,"MOT_Řídící / Kontrolní funkce"]
[601,"MOT_Řídící / Kontrolní funkce"]
[602,"MOT_Řídící / Kontrolní funkce"]
[603,"MOT_Řídící / Kontrolní funkce"]
[604,"MOT_Řídící / Kontrolní funkce"]
[605,"MOT_Řídící / Kontrolní funkce"]
[606,"MOT_Řídící / Kontrolní funkce"]
[607,"MOT_Řídící / Kontrolní funkce"]
[608,"MOT_Řídící / Kontrolní funkce"]
[609,"MOT_Řídící / Kontrolní funkce"]
[610,"MOT_Řídící / Kontrolní funkce"]
[611,"MOT_Řídící / Kontrolní funkce"]
[612,"MOT_Řídící / Kontrolní funkce"]
[613,"MOT_Řídící / Kontrolní funkce"]
[614,"MOT_Řídící / Kontrolní funkce"]
[615,"MOT_Řídící / Kontrolní funkce"]
[616,"MOT_Řídící / Kontrolní funkce"]
[617,"MOT_Řídící / Kontrolní funkce"]
[618,"MOT_Řídící / Kontrolní funkce"]
[619,"MOT_Řídící / Kontrolní funkce"]
[620,"MOT_Řídící / Kontrolní funkce"]
[621,"MOT_Řídící / Kontrolní funkce"]
[622,"MOT_Řídící / Kontrolní funkce"]
[623,"MOT_Řídící / Kontrolní funkce"]
[624,"MOT_Řídící / Kontrolní funkce"]
[625,"MOT_Řídící / Kontrolní funkce"]
[626,"MOT_Řídící / Kontrolní funkce"]
[627,"MOT_Řídící / Kontrolní funkce"]
[628,"MOT_Řídící / Kontrolní funkce"]
[629,"MOT_Řídící / Kontrolní funkce"]
[630,"MOT_Řídící / Kontrolní funkce"]
[631,"MOT_Řídící / Kontrolní funkce"]
[632,"MOT_Řídící / Kontrolní funkce"]
[633,"MOT_Řídící / Kontrolní funkce"]
[634,"MOT_Řídící / Kontrolní funkce"]
[635,"MOT_Řídící / Kontrolní funkce"]
[636,"MOT_Řídící / Kontrolní funkce"]
[637,"MOT_Řídící / Kontrolní funkce"]
[638,"MOT_Řídící / Kontrolní funkce"]
[639,"MOT_Řídící / Kontrolní funkce"]
[640,"MOT_Řídící / Kontrolní funkce"]
[641,"MOT_Řídící / Kontrolní funkce"]
[642,"MOT_Řídící / Kontrolní funkce"]
[643,"MOT_Řídící / Kontrolní funkce"]
[644,"MOT_Řídící / Kontrolní funkce"]
[645,"MOT_Řídící / Kontrolní funkce"]
[646,"MOT_Řídící / Kontrolní funkce"]
[647,"MOT_Řídící / Kontrolní funkce"]
[648,"MOT_Řídící / Kontrolní funkce"]
[649,"MOT_Řídící / Kontrolní funkce"]
[650,"MOT_Řídící / Kontrolní funkce"]
[651,"MOT_Řídící / Kontrolní funkce"]
[652,"MOT_Řídící / Kontrolní funkce"]
[653,"MOT_Řídící / Kontrolní funkce"]
[654,"MOT_Řídící / Kontrolní funkce"]
[655,"MOT_Řídící / Kontrolní funkce"]
[656,"MOT_Řídící / Kontrolní funkce"]
[657,"MOT_Řídící / Kontrolní funkce"]
[658,"MOT_Řídící / Kontrolní funkce"]
[659,"MOT_Řídící / Kontrolní funkce"]
[660,"MOT_Řídící / Kontrolní funkce"]
[661,"MOT_Řídící / Kontrolní funkce"]
[662,"MOT_Řídící / Kontrolní funkce"]
[663,"MOT_Řídící / Kontrolní funkce"]
[664,"MOT_Řídící / Kontrolní funkce"]
[665,"MOT_Řídící / Kontrolní funkce"]
[666,"MOT_Řídící / Kontrolní funkce"]
[667,"MOT_Řídící / Kontrolní funkce"]
[668,"MOT_Řídící / Kontrolní funkce"]
[669,"MOT_Řídící / Kontrolní funkce"]
[670,"MOT_Řídící / Kontrolní funkce"]
[671,"MOT_Řídící / Kontrolní funkce"]
[672,"MOT_Řídící / Kontrolní funkce"]
[673,"MOT_Řídící / Kontrolní funkce"]
[674,"MOT_Řídící / Kontrolní funkce"]
[675,"MOT_Řídící / Kontrolní funkce"]
[676,"MOT_Řídící / Kontrolní funkce"]
[677,"MOT_Řídící / Kontrolní funkce"]
[678,"MOT_Řídící / Kontrolní funkce"]
[679,"MOT_Řídící / Kontrolní funkce"]
[680,"MOT_Řídící / Kontrolní funkce"]
[681,"MOT_Řídící / Kontrolní funkce"]
[682,"MOT_Řídící / Kontrolní funkce"]
[683,"MOT_Řídící / Kontrolní funkce"]
[684,"MOT_Řídící / Kontrolní funkce"]
[685,"MOT_Řídící / Kontrolní funkce"]
[686,"MOT_Řídící / Kontrolní funkce"]
[687,"MOT_Řídící / Kontrolní funkce"]
[688,"MOT_Řídící / Kontrolní funkce"]
[689,"MOT_Řídící / Kontrolní funkce"]
[690,"MOT_Řídící / Kontrolní funkce"]
[691,"MOT_Řídící / Kontrolní funkce"]
[692,"MOT_Řídící / Kontrolní funkce"]
[693,"MOT_Řídící / Kontrolní funkce"]
[694,"MOT_Řídící / Kontrolní funkce"]
[695,"MOT_Řídící / Kontrolní funkce"]
[696,"MOT_Řídící / Kontrolní funkce"]
[697,"MOT_Řídící / Kontrolní funkce"]
[698,"MOT_Řídící / Kontrolní funkce"]
[699,"MOT_Řídící / Kontrolní funkce"]
[700,"MOT_Řídící / Kontrolní funkce"]
[701,"MOT_Řídící / Kontrolní funkce"]
[702,"MOT_Řídící / Kontrolní funkce"]
[703,"MOT_Řídící / Kontrolní funkce"]
[704,"MOT_Řídící / Kontrolní funkce"]
[705,"MOT_Řídící / Kontrolní funkce"]
[706,"MOT_Řídící / Kontrolní funkce"]
[707,"MOT_Řídící / Kontrolní funkce"]
[708,"MOT_Řídící / Kontrolní funkce"]
[709,"MOT_Řídící / Kontrolní funkce"]
[710,"MOT_Řídící / Kontrolní funkce"]
[711,"MOT_Řídící / Kontrolní funkce"]
[712,"MOT_Řídící / Kontrolní funkce"]
[713,"MOT_Řídící / Kontrolní funkce"]
[714,"MOT_Řídící / Kontrolní funkce"]
[715,"MOT_Řídící / Kontrolní funkce"]
[716,"MOT_Řídící / Kontrolní funkce"]
[717,"MOT_Řídící / Kontrolní funkce"]
[718,"MOT_Řídící / Kontrolní funkce"]
[719,"MOT_Řídící / Kontrolní funkce"]
[720,"MOT_Řídící / Kontrolní funkce"]
[721,"MOT_Řídící / Kontrolní funkce"]
[722,"MOT_Řídící / Kontrolní funkce"]
[723,"MOT_Řídící / Kontrolní funkce"]
[724,"MOT_Řídící / Kontrolní funkce"]
[725,"MOT_Řídící / Kontrolní funkce"]
[726,"MOT_Řídící / Kontrolní funkce"]
[727,"MOT_Řídící / Kontrolní funkce"]
[728,"MOT_Řídící / Kontrolní funkce"]
[729,"MOT_Řídící / Kontrolní funkce"]
[730,"MOT_Řídící / Kontrolní funkce"]
[731,"MOT_Řídící / Kontrolní funkce"]
[732,"MOT_Řídící / Kontrolní funkce"]
[733,"MOT_Řídící / Kontrolní funkce"]
[734,"MOT_Řídící / Kontrolní funkce"]
[735,"MOT_Řídící / Kontrolní funkce"]
[736,"MOT_Řídící / Kontrolní funkce"]
[737,"MOT_Řídící / Kontrolní funkce"]
[738,"MOT_Řídící / Kontrolní funkce"]
[739,"MOT_Řídící / Kontrolní funkce"]
[740,"MOT_Řídící / Kontrolní funkce"]
[741,"MOT_Řídící / Kontrolní funkce"]
[742,"MOT_Řídící / Kontrolní funkce"]
[743,"MOT_Řídící / Kontrolní funkce"]
[744,"MOT_Řídící / Kontrolní funkce"]
[745,"MOT_Řídící / Kontrolní funkce"]
[746,"MOT_Řídící / Kontrolní funkce"]
[747,"MOT_Řídící / Kontrolní funkce"]
[748,"MOT_Řídící / Kontrolní funkce"]
[749,"MOT_Řídící / Kontrolní funkce"]
[750,"MOT_Řídící / Kontrolní funkce"]
[751,"MOT_Řídící / Kontrolní funkce"]
[752,"MOT_Řídící / Kontrolní funkce"]
[753,"MOT_Řídící / Kontrolní funkce"]
[754,"MOT_Řídící / Kontrolní funkce"]
[755,"MOT_Řídící / Kontrolní funkce"]
[756,"MOT_Řídící / Kontrolní funkce"]
[757,"MOT_Řídící / Kontrolní funkce"]
[758,"MOT_Řídící / Kontrolní funkce"]
[759,"MOT_Řídící / Kontrolní funkce"]
[760,"MOT_Řídící / Kontrolní funkce"]
[761,"MOT_Řídící / Kontrolní funkce"]
[762,"MOT_Řídící / Kontrolní funkce"]
[763,"MOT_Řídící / Kontrolní funkce"]
[764,"MOT_Řídící / Kontrolní funkce"]
[765,"MOT_Řídící / Kontrolní funkce"]
[766,"MOT_Řídící / Kontrolní funkce"]
[767,"MOT_Řídící / Kontrolní funkce"]
[768,"MOT_Řídící / Kontrolní funkce"]
[769,"MOT_Řídící / Kontrolní funkce"]
[770,"MOT_Řídící / Kontrolní funkce"]
[771,"MOT_Řídící / Kontrolní funkce"]
[772,"MOT_Řídící / Kontrolní funkce"]
[773,"MOT_Řídící / Kontrolní funkce"]
[774,"MOT_Řídící / Kontrolní funkce"]
[775,"MOT_Řídící / Kontrolní funkce"]
[776,"MOT_Řídící / Kontrolní funkce"]
[777,"MOT_Řídící / Kontrolní funkce"]
[778,"MOT_Řídící / Kontrolní funkce"]
[779,"MOT_Řídící / Kontrolní funkce"]
[780,"MOT_Řídící / Kontrolní funkce"]
[781,"MOT_Řídící / Kontrolní funkce"]
[782,"MOT_Řídící / Kontrolní funkce"]
[783,"MOT_Řídící / Kontrolní funkce"]
[784,"MOT_Řídící / Kontrolní funkce"]
[785,"MOT_Řídící / Kontrolní funkce"]
[786,"MOT_Řídící / Kontrolní funkce"]
[787,"MOT_Řídící / Kontrolní funkce"]
[788,"MOT_Řídící / Kontrolní funkce"]
[789,"MOT_Řídící / Kontrolní funkce"]
[790,"MOT_Řídící / Kontrolní funkce"]
[791,"MOT_Řídící / Kontrolní funkce"]
[792,"MOT_Řídící / Kontrolní funkce"]
[793,"MOT_Řídící / Kontrolní funkce"]
[794,"MOT_Řídící / Kontrolní funkce"]
[795,"MOT_Řídící / Kontrolní funkce"]
[796,"MOT_Řídící / Kontrolní funkce"]
[797,"MOT_Řídící / Kontrolní funkce"]
[798,"MOT_Řídící / Kontrolní funkce"]
[799,"MOT_Řídící / Kontrolní funkce"]
[800,"MOT_Řídící / Kontrolní funkce"]
[801,"MOT_Řídící / Kontrolní funkce"]
[802,"MOT_Řídící / Kontrolní funkce"]
[803,"MOT_Řídící / Kontrolní funkce"]
[804,"MOT_Řídící / Kontrolní funkce"]
[805,"MOT_Řídící / Kontrolní funkce"]
[806,"MOT_Řídící / Kontrolní funkce"]
[807,"MOT_Řídící / Kontrolní funkce"]
[808,"MOT_Řídící / Kontrolní funkce"]
[809,"MOT_Řídící / Kontrolní funkce"]
[810,"MOT_Řídící / Kontrolní funkce"]
[811,"MOT_Řídící / Kontrolní funkce"]
[812,"MOT_Řídící / Kontrolní funkce"]
[813,"MOT_Řídící / Kontrolní funkce"]
[814,"MOT_Řídící / Kontrolní funkce"]
[815,"MOT_Řídící / Kontrolní funkce"]
[816,"MOT_Řídící / Kontrolní funkce"]
[817,"MOT_Řídící / Kontrolní funkce"]
[818,"MOT_Řídící / Kontrolní funkce"]
[819,"MOT_Řídící / Kontrolní funkce"]
[820,"MOT_Řídící / Kontrolní funkce"]
[821,"MOT_Řídící / Kontrolní funkce"]
[822,"MOT_Řídící / Kontrolní funkce"]
[823,"MOT_Řídící / Kontrolní funkce"]
[824,"MOT_Řídící / Kontrolní funkce"]
[825,"MOT_Řídící / Kontrolní funkce"]
[826,"MOT_Řídící / Kontrolní funkce"]
[827,"MOT_Řídící / Kontrolní funkce"]
[828,"MOT_Řídící / Kontrolní funkce"]
[829,"MOT_Řídící / Kontrolní funkce"]
[830,"MOT_Řídící / Kontrolní funkce"]
[831,"MOT_Řídící / Kontrolní funkce"]
[832,"MOT_Řídící / Kontrolní funkce"]
[833,"MOT_Řídící / Kontrolní funkce"]
[834,"MOT_Řídící / Kontrolní funkce"]
[835,"MOT_Řídící / Kontrolní funkce"]
[836,"MOT_Řídící / Kontrolní funkce"]
[837,"MOT_Řídící / Kontrolní funkce"]
[838,"MOT_Řídící / Kontrolní funkce"]
[839,"MOT_Řídící / Kontrolní funkce"]
[840,"MOT_Řídící / Kontrolní funkce"]
[841,"MOT_Řídící / Kontrolní funkce"]
[842,"MOT_Řídící / Kontrolní funkce"]
[843,"MOT_Řídící / Kontrolní funkce"]
[844,"MOT_Řídící / Kontrolní funkce"]
[845,"MOT_Řídící / Kontrolní funkce"]
[846,"MOT_Řídící / Kontrolní funkce"]
[847,"MOT_Řídící / Kontrolní funkce"]
[848,"MOT_Řídící / Kontrolní funkce"]
[849,"MOT_Řídící / Kontrolní funkce"]
[850,"MOT_Řídící / Kontrolní funkce"]
[851,"MOT_Řídící / Kontrolní funkce"]
[852,"MOT_Řídící / Kontrolní funkce"]
[853,"MOT_Řídící / Kontrolní funkce"]
[854,"MOT_Řídící / Kontrolní funkce"]
[855,"MOT_Řídící / Kontrolní funkce"]
[856,"MOT_Řídící / Kontrolní funkce"]
[857,"MOT_Řídící / Kontrolní funkce"]
[858,"MOT_Řídící / Kontrolní funkce"]
[859,"MOT_Řídící / Kontrolní funkce"]
[860,"MOT_Řídící / Kontrolní funkce"]
[861,"MOT_Řídící / Kontrolní funkce"]
[862,"MOT_Řídící / Kontrolní funkce"]
[863,"MOT_Řídící / Kontrolní funkce"]
[864,"MOT_Řídící / Kontrolní funkce"]
[865,"MOT_Řídící / Kontrolní funkce"]
[866,"MOT_Řídící / Kontrolní funkce"]
[867,"MOT_Řídící / Kontrolní funkce"]
[868,"MOT_Řídící / Kontrolní funkce"]
[869,"MOT_Řídící / Kontrolní funkce"]
[870,"MOT_Řídící / Kontrolní funkce"]
[871,"MOT_Řídící / Kontrolní funkce"]
[872,"MOT_Řídící / Kontrolní funkce"]
[873,"MOT_Řídící / Kontrolní funkce"]
[874,"MOT_Řídící / Kontrolní funkce"]
[875,"MOT_Řídící / Kontrolní funkce"]
[876,"MOT_Řídící / Kontrolní funkce"]
[877,"MOT_Řídící / Kontrolní funkce"]
[878,"MOT_Řídící / Kontrolní funkce"]
[879,"MOT_Řídící / Kontrolní funkce"]
[880,"MOT_Řídící / Kontrolní funkce"]
[881,"MOT_Řídící / Kontrolní funkce"]
[882,"MOT_Řídící / Kontrolní funkce"]
[883,"MOT_Řídící / Kontrolní funkce"]
[884,"MOT_Řídící / Kontrolní funkce"]
[885,"MOT_Řídící / Kontrolní funkce"]
[886,"MOT_Řídící / Kontrolní funkce"]
[887,"MOT_Řídící / Kontrolní funkce"]
[888,"MOT_Řídící / Kontrolní funkce"]
[889,"MOT_Řídící / Kontrolní funkce"]
[890,"MOT_Řídící / Kontrolní funkce"]
[891,"MOT_Řídící / Kontrolní funkce"]
[892,"MOT_Řídící / Kontrolní funkce"]
[893,"MOT_Řídící / Kontrolní funkce"]
[894,"MOT_Řídící / Kontrolní funkce"]
[895,"MOT_Řídící / Kontrolní funkce"]
[896,"MOT_Řídící / Kontrolní funkce"]
[897,"MOT_Řídící / Kontrolní funkce"]
[898,"MOT_Řídící / Kontrolní funkce"]
[899,"MOT_Řídící / Kontrolní funkce"]
[900,"MOT_Řídící / Kontrolní funkce"]
[901,"MOT_Řídící / Kontrolní funkce"]
[902,"MOT_Řídící / Kontrolní funkce"]
[903,"MOT_Řídící / Kontrolní funkce"]
[904,"MOT_Řídící / Kontrolní funkce"]
[905,"MOT_Řídící / Kontrolní funkce"]
[906,"MOT_Řídící / Kontrolní funkce"]
[907,"MOT_Řídící / Kontrolní funkce"]
[908,"MOT_Řídící / Kontrolní funkce"]
[909,"MOT_Řídící / Kontrolní funkce"]
[910,"MOT_Řídící / Kontrolní funkce"]
[911,"MOT_Řídící / Kontrolní funkce"]
[912,"MOT_Řídící / Kontrolní funkce"]
[913,"MOT_Řídící / Kontrolní funkce"]
[914,"MOT_Řídící / Kontrolní funkce"]
[915,"MOT_Řídící / Kontrolní funkce"]
[916,"MOT_Řídící / Kontrolní funkce"]
[917,"MOT_Řídící / Kontrolní funkce"]
[918,"MOT_Řídící / Kontrolní funkce"]
[919,"MOT_Řídící / Kontrolní funkce"]
[920,"MOT_Řídící / Kontrolní funkce"]
[921,"MOT_Řídící / Kontrolní funkce"]
[922,"MOT_Řídící / Kontrolní funkce"]
[923,"MOT_Řídící / Kontrolní funkce"]
[924,"MOT_Řídící / Kontrolní funkce"]
[925,"MOT_Řídící / Kontrolní funkce"]
[926,"MOT_Řídící / Kontrolní funkce"]
[927,"MOT_Řídící / Kontrolní funkce"]
[928,"MOT_Řídící / Kontrolní funkce"]
[929,"MOT_Řídící / Kontrolní funkce"]
[930,"MOT_Řídící / Kontrolní funkce"]
[931,"MOT_Řídící / Kontrolní funkce"]
[932,"MOT_Řídící / Kontrolní funkce"]
[933,"MOT_Řídící / Kontrolní funkce"]
[934,"MOT_Řídící / Kontrolní funkce"]
[935,"MOT_Řídící / Kontrolní funkce"]
[936,"MOT_Řídící / Kontrolní funkce"]
[937,"MOT_Řídící / Kontrolní funkce"]
[938,"MOT_Řídící / Kontrolní funkce"]
[939,"MOT_Řídící / Kontrolní funkce"]
[940,"MOT_Řídící / Kontrolní funkce"]
[941,"MOT_Řídící / Kontrolní funkce"]
[942,"MOT_Řídící / Kontrolní funkce"]
[943,"MOT_Řídící / Kontrolní funkce"]
[944,"MOT_Řídící / Kontrolní funkce"]
[945,"MOT_Řídící / Kontrolní funkce"]
[946,"MOT_Řídící / Kontrolní funkce"]
[947,"MOT_Řídící / Kontrolní funkce"]
[948,"MOT_Řídící / Kontrolní funkce"]
[949,"MOT_Řídící / Kontrolní funkce"]
[950,"MOT_Řídící / Kontrolní funkce"]
[951,"MOT_Řídící / Kontrolní funkce"]
[952,"MOT_Řídící / Kontrolní funkce"]
[953,"MOT_Řídící / Kontrolní funkce"]
[954,"MOT_Řídící / Kontrolní funkce"]
[955,"MOT_Řídící / Kontrolní funkce"]
[956,"MOT_Řídící / Kontrolní funkce"]
[957,"MOT_Řídící / Kontrolní funkce"]
[958,"MOT_Řídící / Kontrolní funkce"]
[959,"MOT_Řídící / Kontrolní funkce"]
[960,"MOT_Řídící / Kontrolní funkce"]
[961,"MOT_Řídící / Kontrolní funkce"]
[962,"MOT_Řídící / Kontrolní funkce"]
[963,"MOT_Řídící / Kontrolní funkce"]
[964,"MOT_Řídící / Kontrolní funkce"]
[965,"MOT_Řídící / Kontrolní funkce"]
[966,"MOT_Řídící / Kontrolní funkce"]
[967,"MOT_Řídící / Kontrolní funkce"]
[968,"MOT_Řídící / Kontrolní funkce"]
[969,"MOT_Řídící / Kontrolní funkce"]
[970,"MOT_Řídící / Kontrolní funkce"]
[971,"MOT_Řídící / Kontrolní funkce"]
[972,"MOT_Řídící / Kontrolní funkce"]
[973,"MOT_Řídící / Kontrolní funkce"]
[974,"MOT_Řídící / Kontrolní funkce"]
[975,"MOT_Řídící / Kontrolní funkce"]
[976,"MOT_Řídící / Kontrolní funkce"]
[977,"MOT_Řídící / Kontrolní funkce"]
[978,"MOT_Řídící / Kontrolní funkce"]
[979,"MOT_Řídící / Kontrolní funkce"]
[980,"MOT_Řídící / Kontrolní funkce"]
[981,"MOT_Řídící / Kontrolní funkce"]
[982,"MOT_Řídící / Kontrolní funkce"]
[983,"MOT_Řídící / Kontrolní funkce"]
[984,"MOT_Řídící / Kontrolní funkce"]
[985,"MOT_Řídící / Kontrolní funkce"]
[986,"MOT_Řídící / Kontrolní funkce"]
[987,"MOT_Řídící / Kontrolní funkce"]
[988,"MOT_Řídící / Kontrolní funkce"]
[989,"MOT_Řídící / Kontrolní funkce"]
[990,"MOT_Řídící / Kontrolní funkce"]
[991,"MOT_Řídící / Kontrolní funkce"]
[992,"MOT_Řídící / Kontrolní funkce"]
[993,"MOT_Řídící / Kontrolní funkce"]
[994,"MOT_Řídící / Kontrolní funkce"]
[995,"MOT_Řídící / Kontrolní funkce"]
[996,"MOT_Řídící / Kontrolní funkce"]
[997,"MOT_Řídící / Kontrolní funkce"]

{"sheet":"Návod na vyplnění","index":2,"n_rows":26,"n_cols":5,"rows_kept":26,"cut":false,"hidden":false,"merged":[[6,2,6,4],[22,2,22,4],[25,2,27,4],[5,2,5,4]]}
[]
[]
[]
[]
[]
[null,null,"Návod na vyplnění položek"]
[null,null,"Seznam řídících funkcí"]
[null,null,"Název pole","Obsah pole","Vyplnění"]
[null,null,"Kód třídy MATRIO","MOT_Řídící / Kontrolní funkce","automatické"]
[null,null,"Druh prvku","Druh části zařízení, pro kterou jsou funkce uvedeny (HMI / Měření / AČ / Režim)","výběr z číselníku"]
[null,null,"Označení prvku","Označení části zařízení, pro kterou jsou funkce uvedeny","volný text"]
[null,null,"Název prvku","Název (popis) části zařízení, pro kterou jsou funkce uvedeny","volný text"]
[null,null,"Druh funkce","Druh funkce dle číselníku (Monitorování / Ovládání dálk. / Řízení aut. …)","výběr z číselníku"]
[null,null,"Výstup funkce","Výstup (činnost) funkce pro dané zařízení","výběr z číselníku"]
[null,null,"Vstupní podmínky","Vstupní podmínky, které musí být splněny pro daný výstup funkce","volný text"]
[null,null,"Umístění HMI","Umístění HMI pro ovládání zařízení","volný text"]
[null,null,"Systém","Systém SKŘ dle číselníku realizující příslušnou funkci","výběr z číselníku"]
[null,null,"BK","Bezpečnostní kategorie zařízení obvodu vyplývající z funkce SKŘ. Pro EDU kategorizované dle ČSN IEC 61226, pro ETE dle IEEE 384\nEDU: (A = kat.A,  B = kat.B,  C = kat.C,  NC = nekategorizováno)\nETE: 1E = bezpečnostní systémy,  Non-1E = ostatní systémy","výběr z číselníku"]
[null,null,"BK kritérium","Kritéria pro zařazení dle kap.5.4 ČSN IEC 61226","výběr z číselníku"]
[null,null,"BK Kritérium poznámka","Poznámka ke kategorizaci funkce dle ČSN IEC 61226","volný text"]
[null,null,"Upřesnění podmínek","Poznámka ke vstupním podmínkám funkce","volný text"]
[null,null,"Poznámka","Doplnění pro netypické případy","volný text"]
[null,null,"Tabulku \"Seznam řídících funkcí\" vyplňute od prvního řádku, nevynechávejte řádky a pro pohyb použijte rolování."]
[]
[]
[null,null,"UPOZORNĚNÍ:\nTISK JE PŘEDNASTAVEN. V Seznamu řídídcích funkcí se tisknou pouze řádky, ve kterých je vyplněný údaj \"Druh prvku\". \nFormáty tisku jsou nastavené dle velikosti tabulky. Tabulka \"Seznam řídídcích funkcí\" se tiskne na  formát A3 \"na šířku\". "]

{"sheet":"Číselníky","index":3,"n_rows":256,"n_cols":17,"rows_kept":256,"cut":false,"hidden":false,"merged":[[1,2,1,16],[2,2,2,16],[3,1,5,1]]}
[]
[null,null,"Číselníky použité v tabulkách VP_P/SKŘ"]
[null,null,"Vysvětlivky:  Nad názvem atributu: TE+DU = číselník je stejný pro obě elektrárny,  \nTE nebo DU = číselník je pro každou elektrárnu specifický,  TE <>DU = podmíněné prohození dle vybrané lokality na titulním listu"]
[null,"Aktuálně vybraná lokalita na Titulním listu",1,2,3,4,5,6,11,12,13,14,15,16,30,31,32]
[null,null,null,"TE+DU","TE","DU","TE <>DU","TE+DU","TE+DU","TE+DU","TE","DU","TE <>DU","DU","TE","DU","TE <>DU"]
[null,null,"Lokalita","Stupeň","Typ/Podtyp (ETE)","Typ/Podtyp (EDU)","Typ/Podtyp ","Druh prvku","Druh funkce","Výstup funkce","BK","BK","BK","BK kritérium","Systém SKŘ ETE","Systém SKŘ EDU","Systém SKŘ"]
[null,{"$f":"'Titulní list'!CD14","v":" "}," "," "," "," ",{"$f":"IF($B$7=\"ETE\",E7,IF($B$7=\"EDU\",F7,\" \"))","v":" "}," "," "," "," "," ",{"$f":"IF($B$7=\"ETE\",K7,IF($B$7=\"EDU\",L7,\" \"))","v":" "}," "," "," ",{"$f":"IF($B$7=\"ETE\",O7,P7)","v":" "}]
[null,null,"ETE","PDPS","PPPT","H16T ",{"$f":"IF($B$7=\"ETE\",E8,IF($B$7=\"EDU\",F8,\" \"))","v":" "},"Měření","Monitorování","AZR","1E","A",{"$f":"IF($B$7=\"ETE\",K8,IF($B$7=\"EDU\",L8,\" \"))","v":" "},"a)","AD","AM1","AM1"]
[null,null,"EDU","DoSP","PPPS","H16S",{"$f":"IF($B$7=\"ETE\",E9,IF($B$7=\"EDU\",F9,\" \"))","v":" "},"AČ","Ovládání dálk.","Blokuje vypnutí","N-1E","B",{"$f":"IF($B$7=\"ETE\",K9,IF($B$7=\"EDU\",L9,\" \"))","v":" "},"b)","ADO","AM2","AM2"]
[null,null,null,"PDSŘ","EDST/SKT","H01S",{"$f":"IF($B$7=\"ETE\",E10,IF($B$7=\"EDU\",F10,\" \"))","v":" "},"Režim","Řízení aut.","Blokuje zapnutí"," ","C",{"$f":"IF($B$7=\"ETE\",K10,IF($B$7=\"EDU\",L10,\" \"))","v":" "},"c)","ASBS","AM3","AM3"]
[null,null,null,null,"EDSS/SKT","H01S",{"$f":"IF($B$7=\"ETE\",E11,IF($B$7=\"EDU\",F11,\" \"))","v":" "},"HMI",null,"Blokuje zapnutí režimu \"AUT\""," ","NC",{"$f":"IF($B$7=\"ETE\",K11,IF($B$7=\"EDU\",L11,\" \"))","v":" "},"d)","ASDV","AM4","AM4"]
[null,null,null,null,null,null,null,null,null,"Blokuje zapnutí režimu \"MÍSTNĚ\"",null,null,null,"e)","ASHO","AM5","AM5"]
[null,null,null,null,null,null,null,null,null,"Blokuje zapnutí režimu \"RUČ - DÁLKOVĚ\"",null,null,null,"f)","ASPD","AO","AO"]
[null,null,null,null,null,null,null,null,null,"Vypíná",null,null,null,"g)","ASPO","ASRI","ASRI"]
[null,null,null,null,null,null,null,null,null,"Vypíná a blokuje zapnutí",null,null,null,"h)","ASSO","ASRP","ASRP"]
[null,null,null,null,null,null,null,null,null,"Zapíná",null,null,null,"i)","ASSV","ASRS","ASRS"]
[null,null,null,null,null,null,null,null,null,"Zapíná a blokuje vypnutí režimu \"AUT\"",null,null,null,"j)","BFVF","ASRX","ASRX"]
[null,null,null,null,null,null,null,null,null,"Ruč. vypnutí",null,null,null,"k)","BNIS","AT1","AT1"]
[null,null,null,null,null,null,null,null,null,"Ruč. zapnutí",null,null,null,null,"BUK","AT2","AT2"]
[null,null,null,null,null,null,null,null,null,"Zapíná (cesta I)",null,null,null,null,"CO","AT3","AT3"]
[null,null,null,null,null,null,null,null,null,"Zapíná (cesta II)",null,null,null,null,"COV","AT4","AT4"]
[null,null,null,null,null,null,null,null,null,"Regulace",null,null,null,null,"CSOT","AT5","AT5"]
[null,null,null,null,null,null,null,null,null,"Vypíná buzení",null,null,null,null,"DEKO","COH","COH"]
[null,null,null,null,null,null,null,null,null,"Vypíná odbuzovač QM3",null,null,null,null,"DGS","CSRK","CSRK"]
[null,null,null,null,null,null,null,null,null,"Zapíná buzení (cesta I)",null,null,null,null,"DHM","CVNZ","CVNZ"]
[null,null,null,null,null,null,null,null,null,"Zapíná buzení (cesta II)",null,null,null,null,"DIAG","DGSM","DGSM"]
[null,null,null,null,null,null,null,null,null,"Otevírá",null,null,null,null,"DIL","DIAG","DIAG"]
[null,null,null,null,null,null,null,null,null,"Zavírá",null,null,null,null,"DSK","DP","DP"]
[null,null,null,null,null,null,null,null,null,"Zavírá a blokuje otevření",null,null,null,null,"EPDS","DPR","DPR"]
[null,null,null,null,null,null,null,null,null,"Blokuje otevření",null,null,null,null,"EPS","EM1","EM1"]
[null,null,null,null,null,null,null,null,null,"Blokuje zavření",null,null,null,null,"FRAO","EM2","EM2"]
[null,null,null,null,null,null,null,null,null,"Otevírá a blokuje zavření",null,null,null,null,"G-DG","HDA","HDA"]
[null,null,null,null,null,null,null,null,null,"Ukazování",null,null,null,null,"GEN","IO","IO"]
[null,null,null,null,null,null,null,null,null,"Signalizace",null,null,null,null,"GEO","IS","IS"]
[null,null,null,null,null,null,null,null,null,"Aktivuje stopovací solenoid S40",null,null,null,null,"H2","JAO","JAO"]
[null,null,null,null,null,null,null,null,null,"Blokuje aktivaci solenoidu S40",null,null,null,null,"HERM","KAB","KAB"]
[null,null,null,null,null,null,null,null,null,"Deaktivuje stopovací solenoid S40",null,null,null,null,"HRB","KCHA","KCHA"]
[null,null,null,null,null,null,null,null,null,"Vypíná regulátor (cesta I)",null,null,null,null,"HZS","KO","KO"]
[null,null,null,null,null,null,null,null,null,"Vypíná regulátor (cesta II)",null,null,null,null,"CHM","KO1","KO1"]
[null,null,null,null,null,null,null,null,null,"Zapíná generátorový vypínač",null,null,null,null,"CHOM","KO1M","KO1M"]
[null,null,null,null,null,null,null,null,null,"Zapíná regulaci výkonu (cesta I)",null,null,null,null,"CHUV","KO2","KO2"]
[null,null,null,null,null,null,null,null,null,"Zapíná regulaci výkonu (cesta II)",null,null,null,null,"INSI","KO3","KO3"]
[null,null,null,null,null,null,null,null,null,"Zapíná regulátor (cesta I)",null,null,null,null,"ISE1","N11","N11"]
[null,null,null,null,null,null,null,null,null,"Zapíná regulátor (cesta II)",null,null,null,null,"ISE2","N12","N12"]
[null,null,null,null,null,null,null,null,null,null,null,null,null,null,"IVS","N13","N13"]
[null,null,null,null,null,null,null,null,null,null,null,null,null,null,"JAO1","N21","N21"]
[null,null,null,null,null,null,null,null,null,null,null,null,null,null,"JAO2","N22","N22"]
[null,null,null,null,null,null,null,null,null,null,null,null,null,null,"JAO3","N23","N23"]
[null,null,null,null,null,null,null,null,null,null,null,null,null,null,"JOUL","N24","N24"]
[null,null,null,null,null,null,null,null,null,null,null,null,null,null,"KOM","NJO","NJO"]
[null,null,null,null,null,null,null,null,null,null,null,null,null,null,"KTM","NLA","NLA"]
[null,null,null,null,null,null,null,null,null,null,null,null,null,null,"KTMP","NV1","NV1"]
[null,null,null,null,null,null,null,null,null,null,null,null,null,null,"KTMT","NV2","NV2"]
[null,null,null,null,null,null,null,null,null,null,null,null,null,null,"KUCH","NV3","NV3"]
[null,null,null,null,null,null,null,null,null,null,null,null,null,null,"LAB","NV4","NV4"]
[null,null,null,null,null,null,null,null,null,null,null,null,null,null,"LMIZ","NV5","NV5"]
[null,null,null,null,null,null,null,null,null,null,null,null,null,null,"LRKO","NV6","NV6"]
[null,null,null,null,null,null,null,null,null,null,null,null,null,null,"LSKR","NW1","NW1"]
[null,null,null,null,null,null,null,null,null,null,null,null,null,null,"N2","NW2","NW2"]
[null,null,null,null,null,null,null,null,null,null,null,null,null,null,"NANA","NW3","NW3"]
[null,null,null,null,null,null,null,null,null,null,null,null,null,null,"NEM","NW4","NW4"]
[null,null,null,null,null,null,null,null,null,null,null,null,null,null,"NEUT","NW5","NW5"]
[null,null,null,null,null,null,null,null,null,null,null,null,null,null,"NN1","NW6","NW6"]
[null,null,null,null,null,null,null,null,null,null,null,null,null,null,"NN2","NW7","NW7"]
[null,null,null,null,null,null,null,null,null,null,null,null,null,null,"NN3","OB1","OB1"]
[null,null,null,null,null,null,null,null,null,null,null,null,null,null,"NN4","OB2","OB2"]
[null,null,null,null,null,null,null,null,null,null,null,null,null,null,"NN5","OB3","OB3"]
[null,null,null,null,null,null,null,null,null,null,null,null,null,null,"NTKS","OB4","OB4"]
[null,null,null,null,null,null,null,null,null,null,null,null,null,null,"NTO","OO","OO"]
[null,null,null,null,null,null,null,null,null,null,null,null,null,null,"ODK","OS","OS"]
[null,null,null,null,null,null,null,null,null,null,null,null,null,null,"ODOL","PARC",{"$f":"IF($B$7=\"ETE\",O71,P71)","v":"PARC"}]
[null,null,null,null,null,null,null,null,null,null,null,null,null,null,"ODPA","PCSI","PCSI"]
[null,null,null,null,null,null,null,null,null,null,null,null,null,null,"OCH","PCSP","PCSP"]
[null,null,null,null,null,null,null,null,null,null,null,null,null,null,"OSO","PCSS","PCSS"]
[null,null,null,null,null,null,null,null,null,null,null,null,null,null,"OSTR","PCSX","PCSX"]
[null,null,null,null,null,null,null,null,null,null,null,null,null,null,"OV","PMSI","PMSI"]
[null,null,null,null,null,null,null,null,null,null,null,null,null,null,"PAL","PMSP","PMSP"]
[null,null,null,null,null,null,null,null,null,null,null,null,null,null,"PHM","PMSS","PMSS"]
[null,null,null,null,null,null,null,null,null,null,null,null,null,null,"PK","PMSX","PMSX"]
[null,null,null,null,null,null,null,null,null,null,null,null,null,null,"PRO1","PP","PP"]
[null,null,null,null,null,null,null,null,null,null,null,null,null,null,"PRO2","PR","PR"]
[null,null,null,null,null,null,null,null,null,null,null,null,null,null,"PRO3","PT1","PT1"]
[null,null,null,null,null,null,null,null,null,null,null,null,null,null,"PT","PT2","PT2"]
[null,null,null,null,null,null,null,null,null,null,null,null,null,null,"PTPO","PT3","PT3"]
[null,null,null,null,null,null,null,null,null,null,null,null,null,null,"PTV","QA","QA"]
[null,null,null,null,null,null,null,null,null,null,null,null,null,null,"RG","QF","QF"]
[null,null,null,null,null,null,null,null,null,null,null,null,null,null,"RPO","QM","QM"]
[null,null,null,null,null,null,null,null,null,null,null,null,null,null,"RQ","QP","QP"]
[null,null,null,null,null,null,null,null,null,null,null,null,null,null,"RRMS","QS","QS"]
[null,null,null,null,null,null,null,null,null,null,null,null,null,null,"RY","QV","QV"]
[null,null,null,null,null,null,null,null,null,null,null,null,null,null,"SAUT","QW","QW"]
[null,null,null,null,null,null,null,null,null,null,null,null,null,null,"SC","QX","QX"]
[null,null,null,null,null,null,null,null,null,null,null,null,null,null,"SD","QZE","QZE"]
[null,null,null,null,null,null,null,null,null,null,null,null,null,null,"SF","QZM","QZM"]
[null,null,null,null,null,null,null,null,null,null,null,null,null,null,"SHZ","QZS","QZS"]
[null,null,null,null,null,null,null,null,null,null,null,null,null,null,"SIM","RA","RA"]
[null,null,null,null,null,null,null,null,null,null,null,null,null,null,"SJ","RB","RB"]
[null,null,null,null,null,null,null,null,null,null,null,null,null,null,"SKOL","RKO","RKO"]
[null,null,null,null,null,null,null,null,null,null,null,null,null,null,"SPP","RKT","RKT"]
[null,null,null,null,null,null,null,null,null,null,null,null,null,null,"SPPR","RKV","RKV"]
[null,null,null,null,null,null,null,null,null,null,null,null,null,null,"SRAO","RL1","RL1"]
[null,null,null,null,null,null,null,null,null,null,null,null,null,null,"SSRK","RL2","RL2"]
[null,null,null,null,null,null,null,null,null,null,null,null,null,null,"TA","RM1","RM1"]
[null,null,null,null,null,null,null,null,null,null,null,null,null,null,"TAUT","RM2","RM2"]
[null,null,null,null,null,null,null,null,null,null,null,null,null,null,"TB","RM2M","RM2M"]
[null,null,null,null,null,null,null,null,null,null,null,null,null,null,"TBN","RP","RP"]
[null,null,null,null,null,null,null,null,null,null,null,null,null,null,"TC","RQ1","RQ1"]
[null,null,null,null,null,null,null,null,null,null,null,null,null,null,"TD","RR","RR"]
[null,null,null,null,null,null,null,null,null,null,null,null,null,null,"TE","RRCS","RRCS"]
[null,null,null,null,null,null,null,null,null,null,null,null,null,null,"TF","RSBB","RSBB"]
[null,null,null,null,null,null,null,null,null,null,null,null,null,null,"TG","RSBBI","RSBBI"]
[null,null,null,null,null,null,null,null,null,null,null,null,null,null,"TH","RSBBP","RSBBP"]
[null,null,null,null,null,null,null,null,null,null,null,null,null,null,"TK","RSBBS","RSBBS"]
[null,null,null,null,null,null,null,null,null,null,null,null,null,null,"TM","RSBBX","RSBBX"]
[null,null,null,null,null,null,null,null,null,null,null,null,null,null,"TMDS","RSBN","RSBN"]
[null,null,null,null,null,null,null,null,null,null,null,null,null,null,"TN","RSBNI","RSBNI"]
[null,null,null,null,null,null,null,null,null,null,null,null,null,null,"TOSO","RSBNP","RSBNP"]
[null,null,null,null,null,null,null,null,null,null,null,null,null,null,"TPPO","RSBNS","RSBNS"]
[null,null,null,null,null,null,null,null,null,null,null,null,null,null,"TQ","RSBNX","RSBNX"]
[null,null,null,null,null,null,null,null,null,null,null,null,null,null,"TS10","RSBP","RSBP"]
[null,null,null,null,null,null,null,null,null,null,null,null,null,null,"TS20","RSBPI","RSBPI"]
[null,null,null,null,null,null,null,null,null,null,null,null,null,null,"TTC","RSBPP","RSBPP"]
[null,null,null,null,null,null,null,null,null,null,null,null,null,null,"TTS","RSBPX","RSBPX"]
[null,null,null,null,null,null,null,null,null,null,null,null,null,null,"TX","RSBS","RSBS"]
[null,null,null,null,null,null,null,null,null,null,null,null,null,null,"TXHS","RSBSI","RSBSI"]
[null,null,null,null,null,null,null,null,null,null,null,null,null,null,"TXNS","RSBSS","RSBSS"]
[null,null,null,null,null,null,null,null,null,null,null,null,null,null,"TY","RSBSX","RSBSX"]
[null,null,null,null,null,null,null,null,null,null,null,null,null,null,"UD","RSBT","RSBT"]
[null,null,null,null,null,null,null,null,null,null,null,null,null,null,"UE","RSBTI","RSBTI"]
[null,null,null,null,null,null,null,null,null,null,null,null,null,null,"UCHV","RSBTS","RSBTS"]
[null,null,null,null,null,null,null,null,null,null,null,null,null,null,"UJ","RSBTX","RSBTX"]
[null,null,null,null,null,null,null,null,null,null,null,null,null,null,"UR","RSCP","RSCP"]
[null,null,null,null,null,null,null,null,null,null,null,null,null,null,"UX","RSCS","RSCS"]
[null,null,null,null,null,null,null,null,null,null,null,null,null,null,"VB","RV1","RV1"]
[null,null,null,null,null,null,null,null,null,null,null,null,null,null,"VC","RV1M",{"$f":"IF($B$7=\"ETE\",O135,P135)","v":"RV1M"}]
[null,null,null,null,null,null,null,null,null,null,null,null,null,null,"VF","RV2","RV2"]
[null,null,null,null,null,null,null,null,null,null,null,null,null,null,"VG","RV3","RV3"]
[null,null,null,null,null,null,null,null,null,null,null,null,null,null,"VN","RY","RY"]
[null,null,null,null,null,null,null,null,null,null,null,null,null,null,"VSVZ","SCOR","SCOR"]
[null,null,null,null,null,null,null,null,null,null,null,null,null,null,"VTKS","SGPI","SGPI"]
[null,null,null,null,null,null,null,null,null,null,null,null,null,null,"VTO","SGPP","SGPP"]
[null,null,null,null,null,null,null,null,null,null,null,null,null,null,"VVN","SGPX","SGPX"]
[null,null,null,null,null,null,null,null,null,null,null,null,null,null,"VVOD","SH","SH"]
[null,null,null,null,null,null,null,null,null,null,null,null,null,null,"VVS","SIM","SIM"]
[null,null,null,null,null,null,null,null,null,null,null,null,null,null,"VY","SK","SK"]
[null,null,null,null,null,null,null,null,null,null,null,null,null,null,"VZTP","SMS","SMS"]
[null,null,null,null,null,null,null,null,null,null,null,null,null,null,"VZTS","SP","SP"]
[null,null,null,null,null,null,null,null,null,null,null,null,null,null,"VZTT","SP3I","SP3I"]
[null,null,null,null,null,null,null,null,null,null,null,null,null,null,"YA","SP3P","SP3P"]
[null,null,null,null,null,null,null,null,null,null,null,null,null,null,"YB","SP3X","SP3X"]
[null,null,null,null,null,null,null,null,null,null,null,null,null,null,"YC","SPY","SPY"]
[null,null,null,null,null,null,null,null,null,null,null,null,null,null,"YD","SS","SS"]
[null,null,null,null,null,null,null,null,null,null,null,null,null,null,"YP","ST","ST"]
[null,null,null,null,null,null,null,null,null,null,null,null,null,null,"YR","SU","SU"]
[null,null,null,null,null,null,null,null,null,null,null,null,null,null,"YT","TA2","TA2"]
[null,null,null,null,null,null,null,null,null,null,null,null,null,null,"ZIV","TB1","TB1"]
[null,null,null,null,null,null,null,null,null,null,null,null,null,null,"ZN","TB2","TB2"]
[null,null,null,null,null,null,null,null,null,null,null,null,null,null,"ZNAO","TC","TC"]
[null,null,null,null,null,null,null,null,null,null,null,null,null,null,"ZRAO","TD1","TD1"]
[null,null,null,null,null,null,null,null,null,null,null,null,null,null,"ZVOD","TD3","TD3"]
[null,null,null,null,null,null,null,null,null,null,null,null,null,null,"ZZ","TDS","TDS"]
[null,null,null,null,null,null,null,null,null,null,null,null,null,null," ","TE","TE"]
[null,null,null,null,null,null,null,null,null,null,null,null,null,null," ","TELE","TELE"]
[null,null,null,null,null,null,null,null,null,null,null,null,null,null," ","TF1","TF1"]
[null,null,null,null,null,null,null,null,null,null,null,null,null,null," ","TF3","TF3"]
[null,null,null,null,null,null,null,null,null,null,null,null,null,null," ","TG1","TG1"]
[null,null,null,null,null,null,null,null,null,null,null,null,null,null," ","TH1","TH1"]
[null,null,null,null,null,null,null,null,null,null,null,null,null,null," ","TJ","TJ"]
[null,null,null,null,null,null,null,null,null,null,null,null,null,null," ","TK1","TK1"]
[null,null,null,null,null,null,null,null,null,null,null,null,null,null," ","TK2","TK2"]
[null,null,null,null,null,null,null,null,null,null,null,null,null,null," ","TL1","TL1"]
[null,null,null,null,null,null,null,null,null,null,null,null,null,null," ","TL2","TL2"]
[null,null,null,null,null,null,null,null,null,null,null,null,null,null," ","TL3","TL3"]
[null,null,null,null,null,null,null,null,null,null,null,null,null,null," ","TM","TM"]
[null,null,null,null,null,null,null,null,null,null,null,null,null,null," ","TN","TN"]
[null,null,null,null,null,null,null,null,null,null,null,null,null,null," ","TN2","TN2"]
[null,null,null,null,null,null,null,null,null,null,null,null,null,null," ","TP1","TP1"]
[null,null,null,null,null,null,null,null,null,null,null,null,null,null," ","TP2","TP2"]
[null,null,null,null,null,null,null,null,null,null,null,null,null,null," ","TP2M","TP2M"]
[null,null,null,null,null,null,null,null,null,null,null,null,null,null," ","TP3","TP3"]
[null,null,null,null,null,null,null,null,null,null,null,null,null,null," ","TP3M","TP3M"]
[null,null,null,null,null,null,null,null,null,null,null,null,null,null," ","TP4","TP4"]
[null,null,null,null,null,null,null,null,null,null,null,null,null,null," ","TP4M","TP4M"]
[null,null,null,null,null,null,null,null,null,null,null,null,null,null," ","TP7","TP7"]
[null,null,null,null,null,null,null,null,null,null,null,null,null,null," ","TQ","TQ"]
[null,null,null,null,null,null,null,null,null,null,null,null,null,null," ","TR","TR"]
[null,null,null,null,null,null,null,null,null,null,null,null,null,null," ","TRS","TRS"]
[null,null,null,null,null,null,null,null,null,null,null,null,null,null," ","TRSM","TRSM"]
[null,null,null,null,null,null,null,null,null,null,null,null,null,null," ","TS1","TS1"]
[null,null,null,null,null,null,null,null,null,null,null,null,null,null," ","TS2","TS2"]
[null,null,null,null,null,null,null,null,null,null,null,null,null,null," ","TS7","TS7"]
[null,null,null,null,null,null,null,null,null,null,null,null,null,null," ","TS8","TS8"]
[null,null,null,null,null,null,null,null,null,null,null,null,null,null," ","TT","TT"]
[null,null,null,null,null,null,null,null,null,null,null,null,null,null," ","TU","TU"]
[null,null,null,null,null,null,null,null,null,null,null,null,null,null," ","TW","TW"]
[null,null,null,null,null,null,null,null,null,null,null,null,null,null," ","TY1","TY1"]
[null,null,null,null,null,null,null,null,null,null,null,null,null,null," ","TY2","TY2"]
[null,null,null,null,null,null,null,null,null,null,null,null,null,null," ","TY3","TY3"]
[null,null,null,null,null,null,null,null,null,null,null,null,null,null," ","TY5",{"$f":"IF($B$7=\"ETE\",O199,P199)","v":"TY5"}]
[null,null,null,null,null,null,null,null,null,null,null,null,null,null," ","UD","UD"]
[null,null,null,null,null,null,null,null,null,null,null,null,null,null," ","UDM","UDM"]
[null,null,null,null,null,null,null,null,null,null,null,null,null,null," ","UJ1","UJ1"]
[null,null,null,null,null,null,null,null,null,null,null,null,null,null," ","UJ2","UJ2"]
[null,null,null,null,null,null,null,null,null,null,null,null,null,null," ","UQ1","UQ1"]
[null,null,null,null,null,null,null,null,null,null,null,null,null,null," ","UQ2","UQ2"]
[null,null,null,null,null,null,null,null,null,null,null,null,null,null," ","UQ3","UQ3"]
[null,null,null,null,null,null,null,null,null,null,null,null,null,null," ","US1","US1"]
[null,null,null,null,null,null,null,null,null,null,null,null,null,null," ","US1M","US1M"]
[null,null,null,null,null,null,null,null,null,null,null,null,null,null," ","US2","US2"]
[null,null,null,null,null,null,null,null,null,null,null,null,null,null," ","UU1","UU1"]
[null,null,null,null,null,null,null,null,null,null,null,null,null,null," ","UW1","UW1"]
[null,null,null,null,null,null,null,null,null,null,null,null,null,null," ","UW2","UW2"]
[null,null,null,null,null,null,null,null,null,null,null,null,null,null," ","UW3","UW3"]
[null,null,null,null,null,null,null,null,null,null,null,null,null,null," ","UW4","UW4"]
[null,null,null,null,null,null,null,null,null,null,null,null,null,null," ","UX","UX"]
[null,null,null,null,null,null,null,null,null,null,null,null,null,null," ","VC1","VC1"]
[null,null,null,null,null,null,null,null,null,null,null,null,null,null," ","VC1M","VC1M"]
[null,null,null,null,null,null,null,null,null,null,null,null,null,null," ","VF1","VF1"]
[null,null,null,null,null,null,null,null,null,null,null,null,null,null," ","VF2","VF2"]
[null,null,null,null,null,null,null,null,null,null,null,null,null,null," ","VF3","VF3"]
[null,null,null,null,null,null,null,null,null,null,null,null,null,null," ","VF3M","VF3M"]
[null,null,null,null,null,null,null,null,null,null,null,null,null,null," ","VFP","VFP"]
[null,null,null,null,null,null,null,null,null,null,null,null,null,null," ","VFS","VFS"]
[null,null,null,null,null,null,null,null,null,null,null,null,null,null," ","VFV","VFV"]
[null,null,null,null,null,null,null,null,null,null,null,null,null,null," ","VG1","VG1"]
[null,null,null,null,null,null,null,null,null,null,null,null,null,null," ","VG1M","VG1M"]
[null,null,null,null,null,null,null,null,null,null,null,null,null,null," ","VG2","VG2"]
[null,null,null,null,null,null,null,null,null,null,null,null,null,null," ","VH1","VH1"]
[null,null,null,null,null,null,null,null,null,null,null,null,null,null," ","VH1M","VH1M"]
[null,null,null,null,null,null,null,null,null,null,null,null,null,null," ","VH2","VH2"]
[null,null,null,null,null,null,null,null,null,null,null,null,null,null," ","VL","VL"]
[null,null,null,null,null,null,null,null,null,null,null,null,null,null," ","VLM","VLM"]
[null,null,null,null,null,null,null,null,null,null,null,null,null,null," ","VTZ","VTZ"]
[null,null,null,null,null,null,null,null,null,null,null,null,null,null," ","VTZI","VTZI"]
[null,null,null,null,null,null,null,null,null,null,null,null,null,null," ","VTZP","VTZP"]
[null,null,null,null,null,null,null,null,null,null,null,null,null,null," ","VTZS","VTZS"]
[null,null,null,null,null,null,null,null,null,null,null,null,null,null," ","VTZX","VTZX"]
[null,null,null,null,null,null,null,null,null,null,null,null,null,null," ","X","X"]
[null,null,null,null,null,null,null,null,null,null,null,null,null,null," ","XA","XA"]
[null,null,null,null,null,null,null,null,null,null,null,null,null,null," ","XL","XL"]
[null,null,null,null,null,null,null,null,null,null,null,null,null,null," ","XT","XT"]
[null,null,null,null,null,null,null,null,null,null,null,null,null,null," ","YA1","YA1"]
[null,null,null,null,null,null,null,null,null,null,null,null,null,null," ","YA2","YA2"]
[null,null,null,null,null,null,null,null,null,null,null,null,null,null," ","YB","YB"]
[null,null,null,null,null,null,null,null,null,null,null,null,null,null," ","YC1","YC1"]
[null,null,null,null,null,null,null,null,null,null,null,null,null,null," ","YD1","YD1"]
[null,null,null,null,null,null,null,null,null,null,null,null,null,null," ","YP1","YP1"]
[null,null,null,null,null,null,null,null,null,null,null,null,null,null," ","ZN1","ZN1"]
[null,null,null,null,null,null,null,null,null,null,null,null,null,null," ","ZN2","ZN2"]
[null,null,null,null,null,null,null,null,null,null,null,null,null,null," ","ZN3","ZN3"]
[null,null,null,null,null,null,null,null,null,null,null,null,null,null," ","ZN4","ZN4"]
[null,null,null,null,null,null,null,null,null,null,null,null,null,null," ","ZN5","ZN5"]
[null,null,null,null,null,null,null,null,null,null,null,null,null,null," ","ZN6","ZN6"]
[null,null,null,null,null,null,null,null,null,null,null,null,null,null," ","ZN7","ZN7"]
[null,null,null,null,null,null,null,null,null,null,null,null,null,null," ","ZN8","ZN8"]
[null,null,null,null,null,null,null,null,null,null,null,null,null,null," ","ZZ","ZZ"]